Workbook

Sheet Table 1-Revenue Requirement
A3: Company: | C3: Filing Date: | E3: Company-Wide Number of Connections (As of 12/31/20XX): | I3: Number of Connections in Ratemaking Area (As of 12/31/20XX):
A4: Ratemaking Area: | C4: Filing Year: | D4: =YEAR(TODAY()) -> 2021 | E4: ="(As of 12/31/"&D4-1&")" -> (As of 12/31/2020) | I4: ="(As of 12/31/"&D4-1&")" -> (As of 12/31/2020)
H7: Annual Revenue Requirements (End of Year)
B8: Latest Adopted Company-Wide Revenue Requirement (Adopted on XX/XX/XXX Per Filing #) | D8: Latest Adopted Ratemaking Area Revenue Requirement (Adopted on XX/XX/XXX Per Filing #) | H8: Year 1 | I8: Year 2 | J8: Year 3 | K8: Year 4 | L8: Year 5
B9: $ | D9: $
A10: Status | B10: Proceedings | C10: Footnote Reference | D10: Description of Filing | E10: Revenue Recovery Mechanism | F10: Effective Date or Proposed Effective Date | G10: Expiration Date or Proposed Expiration Date | H10: =D4 -> 2021 | I10: =H10+1 -> 2022 | J10: =I10+1 -> 2023 | K10: =J10+1 -> 2024 | L10: =K10+1 -> 2025
A11: Baseline Revenue Requirement (Ratemaking Area) | H11: =D9 -> $ | I11: =D9 -> $ | J11: =D9 -> $ | K11: =D9 -> $ | L11: =D9 -> $
A12: Active | B12: A.18-XX-XX; D.19-XX-XXX | D12: (e.g. Bal. Acct., IRMA, WRAM) | E12: (e.g., amortization of balancing account, GRC base rate increase, etc.)
A13: Active | B13: A.18-XX-XXX; D.19-XX-XXX
A14: Active | B14: AL # XXXX
A15: Active | B15: AL # XXXX
A16: Active | B16: AL # XXXX
A17: Active | B17: AL # XXXX
B18: USE THIS BUTTON TO ADD ACTIVE FILINGS
A19: Total Active | H19: =SUM(H12:H18) -> 0 | I19: =SUM(I12:I18) -> 0 | J19: =SUM(J12:J18) -> 0 | K19: =SUM(K12:K18) -> 0 | L19: =SUM(L12:L18) -> 0
A21: Pending - Filed | B21: AL # XXXX
A22: Pending - Filed | B22: AL # XXXX
A23: Pending - Filed | B23: AL # XXXX
A24: Pending - Filed | B24: AL # XXXX
A25: Pending - Filed | B25: A.XX-XX-XXX
A26: Pending - Filed | B26: A.XX-XX-XXX
A27: Pending - New Filing | B27: AL # XXXX
B28: USE THIS BUTTON TO ADD PENDING FILINGS
A29: Total Pending | H29: =SUM(H21:H27) -> 0 | I29: =SUM(I21:I27) -> 0 | J29: =SUM(J21:J27) -> 0 | K29: =SUM(K21:K27) -> 0 | L29: =SUM(L21:L27) -> 0
A31: Anticipated | B31: Advice Letter | D31: IRMA (as appropriate) | E31: No change to stated rev. req.
A32: Anticipated | B32: Advice Letter | D32: 20XX Estimated Escalation Year Increase, Pending Earnings Test | E32: Base rate increase (est.)
A33: Anticipated | B33: Advice Letter | D33: 20XX Estimated Escalation Year Increase, Pending Earnings Test | E33: Base rate increase (est.)
A34: Anticipated | B34: Advice Letter | D34: 20XX WRAM/MCBA | E34: Amort. of balancing acct.
A35: Anticipated | B35: Advice Letter | D35: 20XX WRAM/MCBA | E35: Amort. of balancing acct.
A36: Anticipated | B36: Advice Letter | D36: 20XX WRAM/MCBA | E36: Amort. of balancing acct.
A37: Anticipated | B37: Advice Letter | D37: Supply Cost Offset | E37: Base rate change
A38: Anticipated | B38: Advice Letter | D38: Supply Cost Offset | E38: Base rate change
A39: Anticipated | B39: Advice Letter | D39: Rate base offsets (ALPs) | E39: Base rate increase
A40: Anticipated | B40: Advice Letter | D40: Cost of capital | E40: Base rate change
A41: Anticipated | B41: Application | D41: 20XX GRC | E41: Base rate change
B42: USE THIS BUTTON TO ADD ANTICIPATED FILINGS
A43: Total Anticipated | H43: =SUM(H31:H42) -> 0 | I43: =SUM(I31:I42) -> 0 | J43: =SUM(J31:J42) -> 0 | K43: =SUM(K31:K42) -> 0 | L43: =SUM(L31:L42) -> 0
A44: Total Changes to Ratemaking Area Revenue Requirement, Not Including TBD Amounts | H44: =H19+H29+H43 -> 0 | I44: =I19+I29+I43 -> 0 | J44: =J19+J29+J43 -> 0 | K44: =K19+K29+K43 -> 0 | L44: =L19+L29+L43 -> 0
A45: Total Estimated Ratemaking Area Revenue Requirement, Not Including TBD Amounts | H45: =H11+H44 ->  | I45: =I11+I44 ->  | J45: =J11+J44 ->  | K45: =K11+K44 ->  | L45: =L11+L44 -> 
A47: Footnotes and Assumptions:

Sheet Table 2-Residential Avg Usage
B2: Company: | C2: =IF(ISBLANK('Table 1-Revenue Requirement'!B3),"",'Table 1-Revenue Requirement'!B3) ->  | E2: Filing Date: | F2: =IF(ISBLANK('Table 1-Revenue Requirement'!D3),"",'Table 1-Revenue Requirement'!D3) -> 
B3: Ratemaking Area: | C3: =IF(ISBLANK('Table 1-Revenue Requirement'!B4),"",'Table 1-Revenue Requirement'!B4) ->  | E3: Filing Year: | F3: =IF(ISBLANK('Table 1-Revenue Requirement'!D4),"",'Table 1-Revenue Requirement'!D4) -> 2021
C5: All Residential Customers | D5: Non-Customer Assistance Program (CAP) Customers | E5: CAP Customers | F5: Tier 1 Usage (up to XX Units/month) for Non-CAP Customers | G5: Tier 1 Usage (up to XX Units/month) for CAP Customers
B6: Total Residential Usage (in units used by service area) in 12 Months (from last GRC filing) | C6: =IF(AND(ISBLANK(D6),ISBLANK(E6)),"",D6+E6) -> 18000000 | D6: 15000000 | E6: 3000000 | F6: N/A | G6: N/A
B7: Total Number of Residential Connections (from last GRC filing) | C7: =IF(AND(ISBLANK(D7),ISBLANK(E7)),"",D7+E7) -> 121000 | D7: 100000 | E7: 21000 | F7: N/A | G7: N/A
B8: Residential Average Annual Usage (in units used by service area) Per Connection, or Tier 1 Annual Usage Amount | C8: =IFERROR(C6/C7,"-") -> 148.7603306 | D8: =IFERROR(D6/D7,"-") -> 150 | E8: =IFERROR(E6/E7,"-") -> 142.8571429 | F8: =IFERROR('Table 3 Inputs'!I7*bills,"-") -> 144 | G8: =MIN(tier1break*12,LIRA_Avg_Usage) -> 142.8571429
B9: Current Residential Average Annual Bill | C9: N/A | D9: =IFERROR('Table 3-Current Bill'!C24,"-") -> 318.12 | E9: =IFERROR('Table 3-Current Bill'!D24,"-") -> 213.3042857 | F9: ='Table 3-Current Bill'!E24 -> 304.42 | G9: ='Table 3-Current Bill'!F24 -> 213.3042857
B12: Notes and Assumptions:

Sheet Table 3 Inputs
C1: Quantity Basis | D1: CCF
C3: Variable Charge Calculation | I3: Non-CAP Average Use | J3: CAP Average Use
C4: Number of Tiers | D4: 2 | I4: =IFERROR(Non_LIRA_Avg_Usage/bills,0) -> 12.5 | J4: =IFERROR(LIRA_Avg_Usage/bills,0) -> 11.9047619
D5: Tier Start | E5: ="Tier End ("&D1&")" -> Tier End (CCF) | F5: Tier Width | G5: Non-CAP Tier Rate | H5: CAP Tier Rate | I5: Non-CAP Average Consumption In Tier | J5: CAP Avg Consumption in Tier | K5: Average Monthly Bill in Tier | L5: Average CAP Monthly Bill in Tier
G6: (A) | H6: (B) | I6: (C) | J6: (D) | K6: (E) = (A) * (C) | L6: (F) = (B) * (D)
B7: 1 | C7: Tier 1 | D7: =IF(D4=1,"Uniform Rate","0 "&D1&" to") -> 0 CCF to | E7: 12 | F7: =IF(D4=1,"",E7) -> 12 | G7: 1 | H7: 0.9 | I7: =IF(B7<=$D$4,MIN($F7,I$4),"") -> 12 | J7: =IF(B7<=$D$4,MIN($F7,J$4),"") -> 11.9047619 | K7: =IF($B7<=$D$4,I7*G7,"") -> 12 | L7: =H7*J7 -> 10.71428571
B8: 2 | C8: =IF($B8<=$D$4,"Tier "&B8,"") -> Tier 2 | D8: =IF($B8<$D$4,E7&" "&$D$1&" to",IF($B8=D$4,"Over "&E7&" "&$D$1,"")) -> Over 12 CCF | F8: =IF($B8<$D$4,E8-E7,"") ->  | G8: 2 | H8: 2 | I8: =IF(B8<=$D$4,MIN(I$4-SUM(I$7:I7),$F8),"") -> 0.5 | J8: =IF(B8<=$D$4,MIN(J$4-SUM(J$7:J7),$F8),"") -> 0 | K8: 1 | L8: =H8*J8 -> 0
B9: 3 | I9: =IF(B9<=$D$4,MIN(I$4-SUM(I$7:I8),$F9),"") ->  | J9: =IF(B9<=$D$4,MIN(J$4-SUM(J$7:J8),$F9),"") ->  | K9: =IF($B9<=$D$4,I9*G9,"") ->  | L9: =IF($B9<=$D$4,J9*IF(#REF!="percentage",G9*(1-#REF!),H9),"") -> 
B10: 4 | I10: =IF(B10<=$D$4,MIN(I$4-SUM(I$7:I9),$F10),"") ->  | J10: =IF(B10<=$D$4,MIN(J$4-SUM(J$7:J9),$F10),"") ->  | L10: =IF($B10<=$D$4,J10*IF(#REF!="percentage",G10*(1-#REF!),H10),"") -> 
B11: 5 | I11: =IF(B11<=$D$4,MIN(I$4-SUM(I$7:I10),$F11),"") ->  | J11: =IF(B11<=$D$4,MIN(J$4-SUM(J$7:J10),$F11),"") ->  | L11: =IF($B11<=$D$4,J11*IF(#REF!="percentage",G11*(1-#REF!),H11),"") -> 
B12: 6 | I12: =IF(B12<=$D$4,MIN(I$4-SUM(I$7:I11),$F12),"") ->  | J12: =IF(B12<=$D$4,MIN(J$4-SUM(J$7:J11),$F12),"") ->  | L12: =IF($B12<=$D$4,J12*IF(#REF!="percentage",G12*(1-#REF!),H12),"") -> 
B13: 7 | I13: =IF(B13<=$D$4,MIN(I$4-SUM(I$7:I12),$F13),"") ->  | J13: =IF(B13<=$D$4,MIN(J$4-SUM(J$7:J12),$F13),"") ->  | L13: =IF($B13<=$D$4,J13*IF(#REF!="percentage",G13*(1-#REF!),H13),"") -> 
B14: 8 | I14: =IF(B14<=$D$4,MIN(I$4-SUM(I$7:I13),$F14),"") ->  | J14: =IF(B14<=$D$4,MIN(J$4-SUM(J$7:J13),$F14),"") ->  | L14: =IF($B14<=$D$4,J14*IF(#REF!="percentage",G14*(1-#REF!),H14),"") -> 
B15: 9 | I15: =IF(B15<=$D$4,MIN(I$4-SUM(I$7:I14),$F15),"") ->  | J15: =IF(B15<=$D$4,MIN(J$4-SUM(J$7:J14),$F15),"") ->  | L15: =IF($B15<=$D$4,J15*IF(#REF!="percentage",G15*(1-#REF!),H15),"") -> 
B16: 10 | I16: =IF(B16<=$D$4,MIN(I$4-SUM(I$7:I15),$F16),"") ->  | J16: =IF(B16<=$D$4,MIN(J$4-SUM(J$7:J15),$F16),"") ->  | L16: =IF($B16<=$D$4,J16*IF(#REF!="percentage",G16*(1-#REF!),H16),"") -> 
K17: =SUM(K7:K16) -> 13 | L17: =SUM(L7:L16) -> 10.71428571
C19: Monthly Fixed Charge Calculation
C20: Most Common Residential Meter | D20: 5/8" x 3/4"
D21: Non-CAP Fixed Charge | E21: CAP Fixed Charge (prior to credit or discount)
C22: =D20&" Fixed Charges" -> 5/8" x 3/4" Fixed Charges | D22: 10 | E22: 10
C24: Surcharges, Credits, Fees and Taxes | D24: Type of Charge | E24: Amount of Charge (Non-CAP) | F24: Amount of Charge (CAP) | G24: Number of Months in Effect
C25: CAP Credit | D25: Fixed | F25: -5 | G25: 12
C26: CAP Surcharge | D26: Variable | E26: 0.1 | G26: 12
C27: Temporary Surcharge 1 | D27: Variable | E27: 0.2 | F27: 0.2 | G27: 9
C28: Temporary Surcharge 2 | D28: Variable | E28: 0.01 | F28: 0.01 | G28: 6
C29: … | D29: Fixed | G29: 12
C30: … | D30: Fixed | G30: 12

Sheet Table 3-Current Bill
B2: Company: | C2: =IF(ISBLANK('Table 1-Revenue Requirement'!B3),"",'Table 1-Revenue Requirement'!B3) ->  | F2: Filing Date: | G2: =IF(ISBLANK('Table 1-Revenue Requirement'!D3),"",'Table 1-Revenue Requirement'!D3) -> 
B3: Ratemaking Area: | F3: Filing Year: | G3: =IF(ISBLANK('Table 1-Revenue Requirement'!D4),"",'Table 1-Revenue Requirement'!D4) -> 2021
B5: ="Average Annual Bill Calculation for Residential "&'Table 3 Inputs'!D20&" Meter as of the filing date:" -> Average Annual Bill Calculation for Residential 5/8" x 3/4" Meter as of the filing date:
C6: Average Usage | E6: Tier 1 Usage | G6: Appropriate Rate
C7: Non-CAP | D7: CAP | E7: Non-CAP | F7: CAP
B8: Usage (Ccfs/Year) | C8: =Non_LIRA_Avg_Usage -> 150 | D8: =LIRA_Avg_Usage -> 142.8571429 | E8: =Non_LIRA_Tier_1_Usage -> 144 | F8: =LIRA_Tier_1_Usage -> 142.8571429 | G8: (Incl. Start and Expiration Date as Appropriate)
B10: Service Charge | C10: ='Table 3 Inputs'!D22*bills -> 120 | D10: ='Table 3 Inputs'!E22*bills -> 120 | E10: ='Table 3 Inputs'!D22*bills -> 120 | F10: ='Table 3 Inputs'!E22*bills -> 120 | G10: $XX.XX per month or bimonthly
B11: Quantity Charge | C11: =IFERROR(SUMPRODUCT('Table 3 Inputs'!G7:G16,'Table 3 Inputs'!I7:I16)*bills,0) -> 156 | D11: =IFERROR('Table 3 Inputs'!L17*bills,0) -> 128.5714286 | E11: =IFERROR('Table 3 Inputs'!$F$7*'Table 3 Inputs'!G7*bills,0) -> 144 | F11: =IFERROR('Table 3 Inputs'!L7*bills,0) -> 128.5714286 | G11: $XX.XX per CCF
B12: Subtotal: | C12: =SUBTOTAL(9,C10:C11) -> 276 | D12: =SUBTOTAL(9,D10:D11) -> 248.5714286 | E12: =SUBTOTAL(9,E10:E11) -> 264 | F12: =SUBTOTAL(9,F10:F11) -> 248.5714286
B13: Relevant Surcharges, Credits, Fees and Taxes
B14: ='Table 3 Inputs'!C25 -> CAP Credit | C14: =IF('Table 3 Inputs'!$D25="Fixed",'Table 3 Inputs'!$E25*bills*('Table 3 Inputs'!$G25/bills),'Table 3 Inputs'!$E25*C$8*('Table 3 Inputs'!$G25/bills)) -> 0 | D14: =IF('Table 3 Inputs'!$D25="Fixed",'Table 3 Inputs'!$F25*bills*('Table 3 Inputs'!$G25/bills),'Table 3 Inputs'!$F25*D$8*('Table 3 Inputs'!$G25/bills)) -> -60 | E14: =IF('Table 3 Inputs'!$D25="Fixed",'Table 3 Inputs'!$E25*bills*('Table 3 Inputs'!$G25/bills),'Table 3 Inputs'!$E25*E$8*('Table 3 Inputs'!$G25/bills)) -> 0 | F14: =IF('Table 3 Inputs'!$D25="Fixed",'Table 3 Inputs'!$F25*bills*('Table 3 Inputs'!$G25/bills),'Table 3 Inputs'!$F25*F$8*('Table 3 Inputs'!$G25/bills)) -> -60 | G14: =IF('Table 3 Inputs'!D25="Fixed","$"&'Table 3 Inputs'!E25&" per month","$"&'Table 3 Inputs'!E25&" per "&'Table 3 Inputs'!$D$1) -> $ per month
B15: ='Table 3 Inputs'!C26 -> CAP Surcharge | C15: =IF('Table 3 Inputs'!$D26="Fixed",'Table 3 Inputs'!$E26*bills*('Table 3 Inputs'!$G26/bills),'Table 3 Inputs'!$E26*C$8*('Table 3 Inputs'!$G26/bills)) -> 15 | D15: =IF('Table 3 Inputs'!$D26="Fixed",'Table 3 Inputs'!$F26*bills*('Table 3 Inputs'!$G26/bills),'Table 3 Inputs'!$F26*D$8*('Table 3 Inputs'!$G26/bills)) -> 0 | E15: =IF('Table 3 Inputs'!$D26="Fixed",'Table 3 Inputs'!$E26*bills*('Table 3 Inputs'!$G26/bills),'Table 3 Inputs'!$E26*E$8*('Table 3 Inputs'!$G26/bills)) -> 14.4 | F15: =IF('Table 3 Inputs'!$D26="Fixed",'Table 3 Inputs'!$F26*bills*('Table 3 Inputs'!$G26/bills),'Table 3 Inputs'!$F26*F$8*('Table 3 Inputs'!$G26/bills)) -> 0 | G15: =IF('Table 3 Inputs'!D26="Fixed","$"&'Table 3 Inputs'!E26&" per month","$"&'Table 3 Inputs'!E26&" per "&'Table 3 Inputs'!$D$1) -> $0.1 per CCF
B16: ='Table 3 Inputs'!C27 -> Temporary Surcharge 1 | C16: =IF('Table 3 Inputs'!$D27="Fixed",'Table 3 Inputs'!$E27*bills*('Table 3 Inputs'!$G27/bills),'Table 3 Inputs'!$E27*C$8*('Table 3 Inputs'!$G27/bills)) -> 22.5 | D16: =IF('Table 3 Inputs'!$D27="Fixed",'Table 3 Inputs'!$F27*bills*('Table 3 Inputs'!$G27/bills),'Table 3 Inputs'!$F27*D$8*('Table 3 Inputs'!$G27/bills)) -> 21.42857143 | E16: =IF('Table 3 Inputs'!$D27="Fixed",'Table 3 Inputs'!$E27*bills*('Table 3 Inputs'!$G27/bills),'Table 3 Inputs'!$E27*E$8*('Table 3 Inputs'!$G27/bills)) -> 21.6 | F16: =IF('Table 3 Inputs'!$D27="Fixed",'Table 3 Inputs'!$F27*bills*('Table 3 Inputs'!$G27/bills),'Table 3 Inputs'!$F27*F$8*('Table 3 Inputs'!$G27/bills)) -> 21.42857143 | G16: =IF('Table 3 Inputs'!D27="Fixed","$"&'Table 3 Inputs'!E27&" per month","$"&'Table 3 Inputs'!E27&" per "&'Table 3 Inputs'!$D$1) -> $0.2 per CCF
B17: ='Table 3 Inputs'!C28 -> Temporary Surcharge 2 | C17: =IF('Table 3 Inputs'!$D28="Fixed",'Table 3 Inputs'!$E28*bills*('Table 3 Inputs'!$G28/bills),'Table 3 Inputs'!$E28*C$8*('Table 3 Inputs'!$G28/bills)) -> 0.75 | D17: =IF('Table 3 Inputs'!$D28="Fixed",'Table 3 Inputs'!$F28*bills*('Table 3 Inputs'!$G28/bills),'Table 3 Inputs'!$F28*D$8*('Table 3 Inputs'!$G28/bills)) -> 0.7142857143 | E17: =IF('Table 3 Inputs'!$D28="Fixed",'Table 3 Inputs'!$E28*bills*('Table 3 Inputs'!$G28/bills),'Table 3 Inputs'!$E28*E$8*('Table 3 Inputs'!$G28/bills)) -> 0.72 | F17: =IF('Table 3 Inputs'!$D28="Fixed",'Table 3 Inputs'!$F28*bills*('Table 3 Inputs'!$G28/bills),'Table 3 Inputs'!$F28*F$8*('Table 3 Inputs'!$G28/bills)) -> 0.7142857143 | G17: =IF('Table 3 Inputs'!D28="Fixed","$"&'Table 3 Inputs'!E28&" per month","$"&'Table 3 Inputs'!E28&" per "&'Table 3 Inputs'!$D$1) -> $0.01 per CCF
B18: ='Table 3 Inputs'!C29 -> … | C18: =IF('Table 3 Inputs'!$D29="Fixed",'Table 3 Inputs'!$E29*bills*('Table 3 Inputs'!$G29/bills),'Table 3 Inputs'!$E29*C$8*('Table 3 Inputs'!$G29/bills)) -> 0 | D18: =IF('Table 3 Inputs'!$D29="Fixed",'Table 3 Inputs'!$F29*bills*('Table 3 Inputs'!$G29/bills),'Table 3 Inputs'!$F29*D$8*('Table 3 Inputs'!$G29/bills)) -> 0 | E18: =IF('Table 3 Inputs'!$D29="Fixed",'Table 3 Inputs'!$E29*bills*('Table 3 Inputs'!$G29/bills),'Table 3 Inputs'!$E29*E$8*('Table 3 Inputs'!$G29/bills)) -> 0 | F18: =IF('Table 3 Inputs'!$D29="Fixed",'Table 3 Inputs'!$F29*bills*('Table 3 Inputs'!$G29/bills),'Table 3 Inputs'!$F29*F$8*('Table 3 Inputs'!$G29/bills)) -> 0 | G18: =IF('Table 3 Inputs'!D29="Fixed","$"&'Table 3 Inputs'!E29&" per month","$"&'Table 3 Inputs'!E29&" per "&'Table 3 Inputs'!$D$1) -> $ per month
B19: ='Table 3 Inputs'!C30 -> … | C19: =IF('Table 3 Inputs'!$D30="Fixed",'Table 3 Inputs'!$E30*bills*('Table 3 Inputs'!$G30/bills),'Table 3 Inputs'!$E30*C$8*('Table 3 Inputs'!$G30/bills)) -> 0 | D19: =IF('Table 3 Inputs'!$D30="Fixed",'Table 3 Inputs'!$F30*bills*('Table 3 Inputs'!$G30/bills),'Table 3 Inputs'!$F30*D$8*('Table 3 Inputs'!$G30/bills)) -> 0 | E19: =IF('Table 3 Inputs'!$D30="Fixed",'Table 3 Inputs'!$E30*bills*('Table 3 Inputs'!$G30/bills),'Table 3 Inputs'!$E30*E$8*('Table 3 Inputs'!$G30/bills)) -> 0 | F19: =IF('Table 3 Inputs'!$D30="Fixed",'Table 3 Inputs'!$F30*bills*('Table 3 Inputs'!$G30/bills),'Table 3 Inputs'!$F30*F$8*('Table 3 Inputs'!$G30/bills)) -> 0 | G19: =IF('Table 3 Inputs'!D30="Fixed","$"&'Table 3 Inputs'!E30&" per month","$"&'Table 3 Inputs'!E30&" per "&'Table 3 Inputs'!$D$1) -> $ per month
B21: Subtotal: | C21: =SUBTOTAL(9,C14:C20) -> 38.25 | D21: =SUBTOTAL(9,D14:D20) -> -37.85714286 | E21: =SUBTOTAL(9,E14:E20) -> 36.72 | F21: =SUBTOTAL(9,F14:F20) -> -37.85714286
B22: CPUC Fee | C22: =ROUND((SUM(C12,C21)*0.0123),2) -> 3.87 | D22: =ROUND((SUM(D12,D21)*0.0123),2) -> 2.59 | E22: =ROUND((SUM(E12,E21)*0.0123),2) -> 3.7 | F22: =ROUND((SUM(F12,F21)*0.0123),2) -> 2.59 | G22: 1.23%
B24: ="Total Avg. Annual Bill for "&G3&":" -> Total Avg. Annual Bill for 2021: | C24: =SUBTOTAL(9,C10:C22) -> 318.12 | D24: =SUBTOTAL(9,D10:D22) -> 213.3042857 | E24: =SUBTOTAL(9,E10:E22) -> 304.42 | F24: =SUBTOTAL(9,F10:F22) -> 213.3042857
B27: ="Average Monthly Bill Calculation for Residential "&'Table 3 Inputs'!D20&" Meter as of the filing date:" -> Average Monthly Bill Calculation for Residential 5/8" x 3/4" Meter as of the filing date:
C28: Average Usage | E28: Tier 1 Usage | G28: Appropriate Rate
C29: Non-CAP | D29: CAP | E29: Non-CAP | F29: CAP
B30: Usage (Ccfs/Month) | C30: =IFERROR(Non_LIRA_Avg_Usage/12,"-") -> 12.5 | D30: =IFERROR(LIRA_Avg_Usage/12,"-") -> 11.9047619 | E30: =IFERROR(Non_LIRA_Tier_1_Usage/12,"-") -> 12 | F30: =IFERROR(LIRA_Tier_1_Usage/12,"-") -> 11.9047619 | G30: (Incl. Start and Expiration Date as Appropriate)
B32: Service Charge | C32: ='Table 3 Inputs'!D$22*(bills/12) -> 10 | D32: ='Table 3 Inputs'!E$22*(bills/12) -> 10 | E32: ='Table 3 Inputs'!D$22*bills/12 -> 10 | F32: ='Table 3 Inputs'!E$22*bills/12 -> 10 | G32: $XX.XX per month
B33: Quantity Charge | C33: =C11/12 -> 13 | D33: =D11/12 -> 10.71428571 | E33: ='Table 3 Inputs'!$F$7*'Table 3 Inputs'!G7 -> 12 | F33: ='Table 3 Inputs'!$L$7 -> 10.71428571 | G33: $XX.XX per CCF
B34: Subtotal: | C34: =SUBTOTAL(9,C32:C33) -> 23 | D34: =SUBTOTAL(9,D32:D33) -> 20.71428571 | E34: =SUBTOTAL(9,E32:E33) -> 22 | F34: =SUBTOTAL(9,F32:F33) -> 20.71428571
B35: Relevant Surcharges, Credits, Fees and Taxes
B36: ='Table 3 Inputs'!C25 -> CAP Credit | C36: =C14/12 -> 0 | D36: -5 | E36: 0 | F36: -5 | G36: =IF('Table 3 Inputs'!D25="Fixed","$"&'Table 3 Inputs'!E25&" per month","$"&'Table 3 Inputs'!E25&" per "&'Table 3 Inputs'!$D$1) -> $ per month
B37: ='Table 3 Inputs'!C26 -> CAP Surcharge | C37: 1.25 | D37: 0 | E37: 1.2 | F37: 0 | G37: =IF('Table 3 Inputs'!D26="Fixed","$"&'Table 3 Inputs'!E26&" per month","$"&'Table 3 Inputs'!E26&" per "&'Table 3 Inputs'!$D$1) -> $0.1 per CCF
B38: ='Table 3 Inputs'!C27 -> Temporary Surcharge 1 | C38: 1.875 | D38: 1.785714286 | E38: 1.8 | F38: 1.785714286 | G38: =IF('Table 3 Inputs'!D27="Fixed","$"&'Table 3 Inputs'!E27&" per month","$"&'Table 3 Inputs'!E27&" per "&'Table 3 Inputs'!$D$1) -> $0.2 per CCF
B39: ='Table 3 Inputs'!C28 -> Temporary Surcharge 2 | C39: 0.0625 | D39: 0.05952380952 | E39: 0.06 | F39: 0.05952380952 | G39: =IF('Table 3 Inputs'!D28="Fixed","$"&'Table 3 Inputs'!E28&" per month","$"&'Table 3 Inputs'!E28&" per "&'Table 3 Inputs'!$D$1) -> $0.01 per CCF
B40: ='Table 3 Inputs'!C29 -> … | C40: 0 | D40: 0 | E40: 0 | F40: 0 | G40: =IF('Table 3 Inputs'!D29="Fixed","$"&'Table 3 Inputs'!E29&" per month","$"&'Table 3 Inputs'!E29&" per "&'Table 3 Inputs'!$D$1) -> $ per month
B41: ='Table 3 Inputs'!C30 -> … | C41: 0 | D41: 0 | E41: 0 | F41: 0 | G41: =IF('Table 3 Inputs'!D30="Fixed","$"&'Table 3 Inputs'!E30&" per month","$"&'Table 3 Inputs'!E30&" per "&'Table 3 Inputs'!$D$1) -> $ per month
B43: Subtotal: | C43: =SUBTOTAL(9,C36:C42) -> 3.1875 | D43: =SUBTOTAL(9,D36:D42) -> -3.154761905 | E43: =SUBTOTAL(9,E36:E42) -> 3.06 | F43: =SUBTOTAL(9,F36:F42) -> -3.154761905
B44: CPUC Fee | C44: =ROUND((SUM(C34,C43)*0.0123),2) -> 0.32 | D44: =ROUND((SUM(D34,D43)*0.0123),2) -> 0.22 | E44: =ROUND((SUM(E34,E43)*0.0123),2) -> 0.31 | F44: =ROUND((SUM(F34,F43)*0.0123),2) -> 0.22 | G44: 1.23%
B46: Total Avg. Monthly Bill for July 2019: | C46: =SUBTOTAL(9,C32:C44) -> 26.5075 | D46: =SUBTOTAL(9,D32:D44) -> 17.77952381 | E46: =SUBTOTAL(9,E32:E44) -> 25.37 | F46: =SUBTOTAL(9,F32:F44) -> 17.77952381
B49: ="Estimated Incremental Annual Bill Impact for Residential "&'Table 3 Inputs'!D20&" Meter with "&B50&" and "&B57&" Rate Escalation related to "&B50-1&" GRC:" -> Estimated Incremental Annual Bill Impact for Residential 5/8" x 3/4" Meter with 2020 and 2021 Rate Escalation related to 2019 GRC:
B50: 2020 | C50: Average Usage | E50: Tier 1 Usage
C51: Non-CAP | D51: CAP | E51: Non-CAP | F51: CAP
B52: Service Charge | G52: From $X.XX to $X.XX per month
B53: Quantity Charge | G53: From $X.XXX to $X.XXX per CCF
B55: Increm. Ann. Impact | C55: =SUM(C52:C54) -> 0 | D55: =SUM(D52:D54) -> 0 | E55: =SUM(E52:E54) -> 0 | F55: =SUM(F52:F54) -> 0
B57: 2021 | C57: Average Usage | E57: Tier 1 Usage
C58: Non-CAP | D58: CAP | E58: Non-CAP | F58: CAP
B59: Service Charge | G59: From $X.XX to $X.XX per month
B60: Quantity Charge | G60: From $X.XXX to $X.XXX per CCF
B62: Increm. Ann. Impact | C62: =SUM(C59:C61) -> 0 | D62: =SUM(D59:D61) -> 0 | E62: =SUM(E59:E61) -> 0 | F62: =SUM(F59:F61) -> 0
B65: ="Estimated Incremental Monthly Bill Impact for Residential "&'Table 3 Inputs'!D20&" Meter with "&B50&" and "&B57&" Rate Escalation related to "&B50-1&" GRC as of the filing date:" -> Estimated Incremental Monthly Bill Impact for Residential 5/8" x 3/4" Meter with 2020 and 2021 Rate Escalation related to 2019 GRC as of the filing date:
B66: Month/Year | C66: Average Usage | E66: Tier 1 Usage
C67: Non-CAP | D67: CAP | E67: Non-CAP | F67: CAP
B68: Service Charge | G68: From $X.XX to $X.XX per month
B69: Quantity Charge | G69: From $X.XXX to $X.XXX per CCF
B71: Increm. Ann. Impact | C71: =SUM(C68:C70) -> 0 | D71: =SUM(D68:D70) -> 0 | E71: =SUM(E68:E70) -> 0 | F71: =SUM(F68:F70) -> 0
B74: Notes and Assumptions:
B75: CPUC User Fee of 1.23% corresponds to the most recent resolution setting the User Fee (i.e., Resolution M-4839). Update as necessary.
B76: ="Current Residential Average Annual Bill based on most common residential meter size for RMA, which is "&'Table 3 Inputs'!D20&"." -> Current Residential Average Annual Bill based on most common residential meter size for RMA, which is 5/8" x 3/4".
B77: Average annual bill calculated with all surcharges, fees, etc. active as of form submission date.
B78: Average annual bill above does not include any pending or anticipated filings.
B79: City tax on water utility services (percentage of bill amount) ranges from __% to __ % within the RMA, no city tax amount included in average bill above since most areas are not assessed a tax on water services.

Sheet Table 4-Impact to Avg Bill
B1: Company: | C1: =IF(ISBLANK('Table 1-Revenue Requirement'!B3),"",'Table 1-Revenue Requirement'!B3) ->  | F1: Filing Date: | G1: =IF(ISBLANK('Table 1-Revenue Requirement'!D3),"",'Table 1-Revenue Requirement'!D3) -> 
B2: Ratemaking Area: | C2: =IF(ISBLANK('Table 1-Revenue Requirement'!B4),"",'Table 1-Revenue Requirement'!B4) ->  | F2: Filing Year: | G2: =IF(ISBLANK('Table 1-Revenue Requirement'!D4),"",'Table 1-Revenue Requirement'!D4) -> 2021
B4: Non-CAP Residential Customers - Average Usage | I4: Annual Bill Impacts (For Both Non-CAP and CAP Customers at Average and Tier 1 Usage Amounts)
B5: Status | C5: Proceedings | D5: Footnote Reference | E5: Description of Filing | F5: Revenue Recovery Mechanism | G5: Effective Date or Proposed Effective Date | H5: Expiration Date or Proposed Expiration Date | I5: =G2 -> 2021 | J5: =I5+1 -> 2022 | K5: =J5+1 -> 2023 | L5: =K5+1 -> 2024 | M5: =L5+1 -> 2025
B6: Baseline bill (incl. service & quantity charges) | C6: D.XX-XX-XXX/A. or AL | I6: =Baseline_Bill_Non_LIRA_Avg -> 276 | J6: =Baseline_Bill_Non_LIRA_Avg -> 276 | K6: =Baseline_Bill_Non_LIRA_Avg -> 276 | L6: =Baseline_Bill_Non_LIRA_Avg -> 276 | M6: =Baseline_Bill_Non_LIRA_Avg -> 276
B7: Active | C7: =IF(ISBLANK('Table 1-Revenue Requirement'!B12),"",'Table 1-Revenue Requirement'!B12) -> A.18-XX-XX; D.19-XX-XXX | D7: =IF(ISBLANK('Table 1-Revenue Requirement'!C12),"",'Table 1-Revenue Requirement'!C12) ->  | E7: =IF(ISBLANK('Table 1-Revenue Requirement'!D12),"",'Table 1-Revenue Requirement'!D12) -> (e.g. Bal. Acct., IRMA, WRAM) | F7: =IF(ISBLANK('Table 1-Revenue Requirement'!E12),"",'Table 1-Revenue Requirement'!E12) -> (e.g., amortization of balancing account, GRC base rate increase, etc.) | G7: =IF(ISBLANK('Table 1-Revenue Requirement'!F12),"",'Table 1-Revenue Requirement'!F12) ->  | H7: =IF(ISBLANK('Table 1-Revenue Requirement'!G12),"",'Table 1-Revenue Requirement'!G12) -> 
B8: Active | C8: =IF(ISBLANK('Table 1-Revenue Requirement'!B13),"",'Table 1-Revenue Requirement'!B13) -> A.18-XX-XXX; D.19-XX-XXX | D8: =IF(ISBLANK('Table 1-Revenue Requirement'!C13),"",'Table 1-Revenue Requirement'!C13) ->  | E8: =IF(ISBLANK('Table 1-Revenue Requirement'!D13),"",'Table 1-Revenue Requirement'!D13) ->  | F8: =IF(ISBLANK('Table 1-Revenue Requirement'!E13),"",'Table 1-Revenue Requirement'!E13) ->  | G8: =IF(ISBLANK('Table 1-Revenue Requirement'!F13),"",'Table 1-Revenue Requirement'!F13) ->  | H8: =IF(ISBLANK('Table 1-Revenue Requirement'!G13),"",'Table 1-Revenue Requirement'!G13) -> 
B9: Active | C9: =IF(ISBLANK('Table 1-Revenue Requirement'!B14),"",'Table 1-Revenue Requirement'!B14) -> AL # XXXX | D9: =IF(ISBLANK('Table 1-Revenue Requirement'!C14),"",'Table 1-Revenue Requirement'!C14) ->  | E9: =IF(ISBLANK('Table 1-Revenue Requirement'!D14),"",'Table 1-Revenue Requirement'!D14) ->  | F9: =IF(ISBLANK('Table 1-Revenue Requirement'!E14),"",'Table 1-Revenue Requirement'!E14) ->  | G9: =IF(ISBLANK('Table 1-Revenue Requirement'!F14),"",'Table 1-Revenue Requirement'!F14) ->  | H9: =IF(ISBLANK('Table 1-Revenue Requirement'!G14),"",'Table 1-Revenue Requirement'!G14) -> 
B10: Active | C10: =IF(ISBLANK('Table 1-Revenue Requirement'!B15),"",'Table 1-Revenue Requirement'!B15) -> AL # XXXX | D10: =IF(ISBLANK('Table 1-Revenue Requirement'!C15),"",'Table 1-Revenue Requirement'!C15) ->  | E10: =IF(ISBLANK('Table 1-Revenue Requirement'!D15),"",'Table 1-Revenue Requirement'!D15) ->  | F10: =IF(ISBLANK('Table 1-Revenue Requirement'!E15),"",'Table 1-Revenue Requirement'!E15) ->  | G10: =IF(ISBLANK('Table 1-Revenue Requirement'!F15),"",'Table 1-Revenue Requirement'!F15) ->  | H10: =IF(ISBLANK('Table 1-Revenue Requirement'!G15),"",'Table 1-Revenue Requirement'!G15) -> 
B11: Active | C11: =IF(ISBLANK('Table 1-Revenue Requirement'!B16),"",'Table 1-Revenue Requirement'!B16) -> AL # XXXX | D11: =IF(ISBLANK('Table 1-Revenue Requirement'!C16),"",'Table 1-Revenue Requirement'!C16) ->  | E11: =IF(ISBLANK('Table 1-Revenue Requirement'!D16),"",'Table 1-Revenue Requirement'!D16) ->  | F11: =IF(ISBLANK('Table 1-Revenue Requirement'!E16),"",'Table 1-Revenue Requirement'!E16) ->  | G11: =IF(ISBLANK('Table 1-Revenue Requirement'!F16),"",'Table 1-Revenue Requirement'!F16) ->  | H11: =IF(ISBLANK('Table 1-Revenue Requirement'!G16),"",'Table 1-Revenue Requirement'!G16) -> 
B12: Active | C12: =IF(ISBLANK('Table 1-Revenue Requirement'!B17),"",'Table 1-Revenue Requirement'!B17) -> AL # XXXX | D12: =IF(ISBLANK('Table 1-Revenue Requirement'!C17),"",'Table 1-Revenue Requirement'!C17) ->  | E12: =IF(ISBLANK('Table 1-Revenue Requirement'!D17),"",'Table 1-Revenue Requirement'!D17) ->  | F12: =IF(ISBLANK('Table 1-Revenue Requirement'!E17),"",'Table 1-Revenue Requirement'!E17) ->  | G12: =IF(ISBLANK('Table 1-Revenue Requirement'!F17),"",'Table 1-Revenue Requirement'!F17) ->  | H12: =IF(ISBLANK('Table 1-Revenue Requirement'!G17),"",'Table 1-Revenue Requirement'!G17) -> 
D13: =IF(ISBLANK('Table 1-Revenue Requirement'!C18),"",'Table 1-Revenue Requirement'!C18) ->  | E13: =IF(ISBLANK('Table 1-Revenue Requirement'!D18),"",'Table 1-Revenue Requirement'!D18) ->  | F13: =IF(ISBLANK('Table 1-Revenue Requirement'!E18),"",'Table 1-Revenue Requirement'!E18) ->  | G13: =IF(ISBLANK('Table 1-Revenue Requirement'!F18),"",'Table 1-Revenue Requirement'!F18) ->  | H13: =IF(ISBLANK('Table 1-Revenue Requirement'!G18),"",'Table 1-Revenue Requirement'!G18) -> 
B14: Total Active | I14: =SUM(I7:I13) -> 0 | J14: =SUM(J7:J13) -> 0 | K14: =SUM(K7:K13) -> 0 | L14: =SUM(L7:L13) -> 0 | M14: =SUM(M7:M13) -> 0
B15: =IF(ISBLANK('Table 1-Revenue Requirement'!A20),"",'Table 1-Revenue Requirement'!A20) ->  | C15: =IF(ISBLANK('Table 1-Revenue Requirement'!B20),"",'Table 1-Revenue Requirement'!B20) ->  | D15: =IF(ISBLANK('Table 1-Revenue Requirement'!C20),"",'Table 1-Revenue Requirement'!C20) ->  | E15: =IF(ISBLANK('Table 1-Revenue Requirement'!D20),"",'Table 1-Revenue Requirement'!D20) ->  | F15: =IF(ISBLANK('Table 1-Revenue Requirement'!E20),"",'Table 1-Revenue Requirement'!E20) ->  | G15: =IF(ISBLANK('Table 1-Revenue Requirement'!F20),"",'Table 1-Revenue Requirement'!F20) ->  | H15: =IF(ISBLANK('Table 1-Revenue Requirement'!G20),"",'Table 1-Revenue Requirement'!G20) -> 
B16: =IF(ISBLANK('Table 1-Revenue Requirement'!A21),"",'Table 1-Revenue Requirement'!A21) -> Pending - Filed | C16: =IF(ISBLANK('Table 1-Revenue Requirement'!B21),"",'Table 1-Revenue Requirement'!B21) -> AL # XXXX | D16: =IF(ISBLANK('Table 1-Revenue Requirement'!C21),"",'Table 1-Revenue Requirement'!C21) ->  | E16: =IF(ISBLANK('Table 1-Revenue Requirement'!D21),"",'Table 1-Revenue Requirement'!D21) ->  | F16: =IF(ISBLANK('Table 1-Revenue Requirement'!E21),"",'Table 1-Revenue Requirement'!E21) ->  | G16: =IF(ISBLANK('Table 1-Revenue Requirement'!F21),"",'Table 1-Revenue Requirement'!F21) ->  | H16: =IF(ISBLANK('Table 1-Revenue Requirement'!G21),"",'Table 1-Revenue Requirement'!G21) -> 
B17: =IF(ISBLANK('Table 1-Revenue Requirement'!A22),"",'Table 1-Revenue Requirement'!A22) -> Pending - Filed | C17: =IF(ISBLANK('Table 1-Revenue Requirement'!B22),"",'Table 1-Revenue Requirement'!B22) -> AL # XXXX | D17: =IF(ISBLANK('Table 1-Revenue Requirement'!C22),"",'Table 1-Revenue Requirement'!C22) ->  | E17: =IF(ISBLANK('Table 1-Revenue Requirement'!D22),"",'Table 1-Revenue Requirement'!D22) ->  | F17: =IF(ISBLANK('Table 1-Revenue Requirement'!E22),"",'Table 1-Revenue Requirement'!E22) ->  | G17: =IF(ISBLANK('Table 1-Revenue Requirement'!F22),"",'Table 1-Revenue Requirement'!F22) ->  | H17: =IF(ISBLANK('Table 1-Revenue Requirement'!G22),"",'Table 1-Revenue Requirement'!G22) -> 
B18: =IF(ISBLANK('Table 1-Revenue Requirement'!A23),"",'Table 1-Revenue Requirement'!A23) -> Pending - Filed | C18: =IF(ISBLANK('Table 1-Revenue Requirement'!B23),"",'Table 1-Revenue Requirement'!B23) -> AL # XXXX | D18: =IF(ISBLANK('Table 1-Revenue Requirement'!C23),"",'Table 1-Revenue Requirement'!C23) ->  | E18: =IF(ISBLANK('Table 1-Revenue Requirement'!D23),"",'Table 1-Revenue Requirement'!D23) ->  | F18: =IF(ISBLANK('Table 1-Revenue Requirement'!E23),"",'Table 1-Revenue Requirement'!E23) ->  | G18: =IF(ISBLANK('Table 1-Revenue Requirement'!F23),"",'Table 1-Revenue Requirement'!F23) ->  | H18: =IF(ISBLANK('Table 1-Revenue Requirement'!G23),"",'Table 1-Revenue Requirement'!G23) -> 
B19: =IF(ISBLANK('Table 1-Revenue Requirement'!A24),"",'Table 1-Revenue Requirement'!A24) -> Pending - Filed | C19: =IF(ISBLANK('Table 1-Revenue Requirement'!B24),"",'Table 1-Revenue Requirement'!B24) -> AL # XXXX | D19: =IF(ISBLANK('Table 1-Revenue Requirement'!C24),"",'Table 1-Revenue Requirement'!C24) ->  | E19: =IF(ISBLANK('Table 1-Revenue Requirement'!D24),"",'Table 1-Revenue Requirement'!D24) ->  | F19: =IF(ISBLANK('Table 1-Revenue Requirement'!E24),"",'Table 1-Revenue Requirement'!E24) ->  | G19: =IF(ISBLANK('Table 1-Revenue Requirement'!F24),"",'Table 1-Revenue Requirement'!F24) ->  | H19: =IF(ISBLANK('Table 1-Revenue Requirement'!G24),"",'Table 1-Revenue Requirement'!G24) -> 
B20: =IF(ISBLANK('Table 1-Revenue Requirement'!A25),"",'Table 1-Revenue Requirement'!A25) -> Pending - Filed | C20: =IF(ISBLANK('Table 1-Revenue Requirement'!B25),"",'Table 1-Revenue Requirement'!B25) -> A.XX-XX-XXX | D20: =IF(ISBLANK('Table 1-Revenue Requirement'!C25),"",'Table 1-Revenue Requirement'!C25) ->  | E20: =IF(ISBLANK('Table 1-Revenue Requirement'!D25),"",'Table 1-Revenue Requirement'!D25) ->  | F20: =IF(ISBLANK('Table 1-Revenue Requirement'!E25),"",'Table 1-Revenue Requirement'!E25) ->  | G20: =IF(ISBLANK('Table 1-Revenue Requirement'!F25),"",'Table 1-Revenue Requirement'!F25) ->  | H20: =IF(ISBLANK('Table 1-Revenue Requirement'!G25),"",'Table 1-Revenue Requirement'!G25) -> 
B21: =IF(ISBLANK('Table 1-Revenue Requirement'!A26),"",'Table 1-Revenue Requirement'!A26) -> Pending - Filed | C21: =IF(ISBLANK('Table 1-Revenue Requirement'!B26),"",'Table 1-Revenue Requirement'!B26) -> A.XX-XX-XXX | D21: =IF(ISBLANK('Table 1-Revenue Requirement'!C26),"",'Table 1-Revenue Requirement'!C26) ->  | E21: =IF(ISBLANK('Table 1-Revenue Requirement'!D26),"",'Table 1-Revenue Requirement'!D26) ->  | F21: =IF(ISBLANK('Table 1-Revenue Requirement'!E26),"",'Table 1-Revenue Requirement'!E26) ->  | G21: =IF(ISBLANK('Table 1-Revenue Requirement'!F26),"",'Table 1-Revenue Requirement'!F26) ->  | H21: =IF(ISBLANK('Table 1-Revenue Requirement'!G26),"",'Table 1-Revenue Requirement'!G26) -> 
B22: =IF(ISBLANK('Table 1-Revenue Requirement'!A27),"",'Table 1-Revenue Requirement'!A27) -> Pending - New Filing | C22: =IF(ISBLANK('Table 1-Revenue Requirement'!B27),"",'Table 1-Revenue Requirement'!B27) -> AL # XXXX | D22: =IF(ISBLANK('Table 1-Revenue Requirement'!C27),"",'Table 1-Revenue Requirement'!C27) ->  | E22: =IF(ISBLANK('Table 1-Revenue Requirement'!D27),"",'Table 1-Revenue Requirement'!D27) ->  | F22: =IF(ISBLANK('Table 1-Revenue Requirement'!E27),"",'Table 1-Revenue Requirement'!E27) ->  | G22: =IF(ISBLANK('Table 1-Revenue Requirement'!F27),"",'Table 1-Revenue Requirement'!F27) ->  | H22: =IF(ISBLANK('Table 1-Revenue Requirement'!G27),"",'Table 1-Revenue Requirement'!G27) -> 
B23: Total Pending | I23: =SUM(I16:I22) -> 0 | J23: =SUM(J16:J22) -> 0 | K23: =SUM(K16:K22) -> 0 | L23: =SUM(L16:L22) -> 0 | M23: =SUM(M16:M22) -> 0
B24: =IF(ISBLANK('Table 1-Revenue Requirement'!A30),"",'Table 1-Revenue Requirement'!A30) ->  | C24: =IF(ISBLANK('Table 1-Revenue Requirement'!B30),"",'Table 1-Revenue Requirement'!B30) ->  | D24: =IF(ISBLANK('Table 1-Revenue Requirement'!C30),"",'Table 1-Revenue Requirement'!C30) ->  | E24: =IF(ISBLANK('Table 1-Revenue Requirement'!D30),"",'Table 1-Revenue Requirement'!D30) ->  | F24: =IF(ISBLANK('Table 1-Revenue Requirement'!E30),"",'Table 1-Revenue Requirement'!E30) ->  | G24: =IF(ISBLANK('Table 1-Revenue Requirement'!F30),"",'Table 1-Revenue Requirement'!F30) ->  | H24: =IF(ISBLANK('Table 1-Revenue Requirement'!G30),"",'Table 1-Revenue Requirement'!G30) -> 
B25: =IF(ISBLANK('Table 1-Revenue Requirement'!A31),"",'Table 1-Revenue Requirement'!A31) -> Anticipated | C25: =IF(ISBLANK('Table 1-Revenue Requirement'!B31),"",'Table 1-Revenue Requirement'!B31) -> Advice Letter | D25: =IF(ISBLANK('Table 1-Revenue Requirement'!C31),"",'Table 1-Revenue Requirement'!C31) ->  | E25: =IF(ISBLANK('Table 1-Revenue Requirement'!D31),"",'Table 1-Revenue Requirement'!D31) -> IRMA (as appropriate) | F25: =IF(ISBLANK('Table 1-Revenue Requirement'!E31),"",'Table 1-Revenue Requirement'!E31) -> No change to stated rev. req. | G25: =IF(ISBLANK('Table 1-Revenue Requirement'!F31),"",'Table 1-Revenue Requirement'!F31) ->  | H25: =IF(ISBLANK('Table 1-Revenue Requirement'!G31),"",'Table 1-Revenue Requirement'!G31) -> 
B26: =IF(ISBLANK('Table 1-Revenue Requirement'!A32),"",'Table 1-Revenue Requirement'!A32) -> Anticipated | C26: =IF(ISBLANK('Table 1-Revenue Requirement'!B32),"",'Table 1-Revenue Requirement'!B32) -> Advice Letter | D26: =IF(ISBLANK('Table 1-Revenue Requirement'!C32),"",'Table 1-Revenue Requirement'!C32) ->  | E26: =IF(ISBLANK('Table 1-Revenue Requirement'!D32),"",'Table 1-Revenue Requirement'!D32) -> 20XX Estimated Escalation Year Increase, Pending Earnings Test | F26: =IF(ISBLANK('Table 1-Revenue Requirement'!E32),"",'Table 1-Revenue Requirement'!E32) -> Base rate increase (est.) | G26: =IF(ISBLANK('Table 1-Revenue Requirement'!F32),"",'Table 1-Revenue Requirement'!F32) ->  | H26: =IF(ISBLANK('Table 1-Revenue Requirement'!G32),"",'Table 1-Revenue Requirement'!G32) -> 
B27: =IF(ISBLANK('Table 1-Revenue Requirement'!A33),"",'Table 1-Revenue Requirement'!A33) -> Anticipated | C27: =IF(ISBLANK('Table 1-Revenue Requirement'!B33),"",'Table 1-Revenue Requirement'!B33) -> Advice Letter | D27: =IF(ISBLANK('Table 1-Revenue Requirement'!C33),"",'Table 1-Revenue Requirement'!C33) ->  | E27: =IF(ISBLANK('Table 1-Revenue Requirement'!D33),"",'Table 1-Revenue Requirement'!D33) -> 20XX Estimated Escalation Year Increase, Pending Earnings Test | F27: =IF(ISBLANK('Table 1-Revenue Requirement'!E33),"",'Table 1-Revenue Requirement'!E33) -> Base rate increase (est.) | G27: =IF(ISBLANK('Table 1-Revenue Requirement'!F33),"",'Table 1-Revenue Requirement'!F33) ->  | H27: =IF(ISBLANK('Table 1-Revenue Requirement'!G33),"",'Table 1-Revenue Requirement'!G33) -> 
B28: =IF(ISBLANK('Table 1-Revenue Requirement'!A34),"",'Table 1-Revenue Requirement'!A34) -> Anticipated | C28: =IF(ISBLANK('Table 1-Revenue Requirement'!B34),"",'Table 1-Revenue Requirement'!B34) -> Advice Letter | D28: =IF(ISBLANK('Table 1-Revenue Requirement'!C34),"",'Table 1-Revenue Requirement'!C34) ->  | E28: =IF(ISBLANK('Table 1-Revenue Requirement'!D34),"",'Table 1-Revenue Requirement'!D34) -> 20XX WRAM/MCBA | F28: =IF(ISBLANK('Table 1-Revenue Requirement'!E34),"",'Table 1-Revenue Requirement'!E34) -> Amort. of balancing acct. | G28: =IF(ISBLANK('Table 1-Revenue Requirement'!F34),"",'Table 1-Revenue Requirement'!F34) ->  | H28: =IF(ISBLANK('Table 1-Revenue Requirement'!G34),"",'Table 1-Revenue Requirement'!G34) -> 
B29: =IF(ISBLANK('Table 1-Revenue Requirement'!A35),"",'Table 1-Revenue Requirement'!A35) -> Anticipated | C29: =IF(ISBLANK('Table 1-Revenue Requirement'!B35),"",'Table 1-Revenue Requirement'!B35) -> Advice Letter | D29: =IF(ISBLANK('Table 1-Revenue Requirement'!C35),"",'Table 1-Revenue Requirement'!C35) ->  | E29: =IF(ISBLANK('Table 1-Revenue Requirement'!D35),"",'Table 1-Revenue Requirement'!D35) -> 20XX WRAM/MCBA | F29: =IF(ISBLANK('Table 1-Revenue Requirement'!E35),"",'Table 1-Revenue Requirement'!E35) -> Amort. of balancing acct. | G29: =IF(ISBLANK('Table 1-Revenue Requirement'!F35),"",'Table 1-Revenue Requirement'!F35) ->  | H29: =IF(ISBLANK('Table 1-Revenue Requirement'!G35),"",'Table 1-Revenue Requirement'!G35) -> 
B30: =IF(ISBLANK('Table 1-Revenue Requirement'!A36),"",'Table 1-Revenue Requirement'!A36) -> Anticipated | C30: =IF(ISBLANK('Table 1-Revenue Requirement'!B36),"",'Table 1-Revenue Requirement'!B36) -> Advice Letter | D30: =IF(ISBLANK('Table 1-Revenue Requirement'!C36),"",'Table 1-Revenue Requirement'!C36) ->  | E30: =IF(ISBLANK('Table 1-Revenue Requirement'!D36),"",'Table 1-Revenue Requirement'!D36) -> 20XX WRAM/MCBA | F30: =IF(ISBLANK('Table 1-Revenue Requirement'!E36),"",'Table 1-Revenue Requirement'!E36) -> Amort. of balancing acct. | G30: =IF(ISBLANK('Table 1-Revenue Requirement'!F36),"",'Table 1-Revenue Requirement'!F36) ->  | H30: =IF(ISBLANK('Table 1-Revenue Requirement'!G36),"",'Table 1-Revenue Requirement'!G36) -> 
B31: =IF(ISBLANK('Table 1-Revenue Requirement'!A37),"",'Table 1-Revenue Requirement'!A37) -> Anticipated | C31: =IF(ISBLANK('Table 1-Revenue Requirement'!B37),"",'Table 1-Revenue Requirement'!B37) -> Advice Letter | D31: =IF(ISBLANK('Table 1-Revenue Requirement'!C37),"",'Table 1-Revenue Requirement'!C37) ->  | E31: =IF(ISBLANK('Table 1-Revenue Requirement'!D37),"",'Table 1-Revenue Requirement'!D37) -> Supply Cost Offset | F31: =IF(ISBLANK('Table 1-Revenue Requirement'!E37),"",'Table 1-Revenue Requirement'!E37) -> Base rate change | G31: =IF(ISBLANK('Table 1-Revenue Requirement'!F37),"",'Table 1-Revenue Requirement'!F37) ->  | H31: =IF(ISBLANK('Table 1-Revenue Requirement'!G37),"",'Table 1-Revenue Requirement'!G37) -> 
B32: =IF(ISBLANK('Table 1-Revenue Requirement'!A38),"",'Table 1-Revenue Requirement'!A38) -> Anticipated | C32: =IF(ISBLANK('Table 1-Revenue Requirement'!B38),"",'Table 1-Revenue Requirement'!B38) -> Advice Letter | D32: =IF(ISBLANK('Table 1-Revenue Requirement'!C38),"",'Table 1-Revenue Requirement'!C38) ->  | E32: =IF(ISBLANK('Table 1-Revenue Requirement'!D38),"",'Table 1-Revenue Requirement'!D38) -> Supply Cost Offset | F32: =IF(ISBLANK('Table 1-Revenue Requirement'!E38),"",'Table 1-Revenue Requirement'!E38) -> Base rate change | G32: =IF(ISBLANK('Table 1-Revenue Requirement'!F38),"",'Table 1-Revenue Requirement'!F38) ->  | H32: =IF(ISBLANK('Table 1-Revenue Requirement'!G38),"",'Table 1-Revenue Requirement'!G38) -> 
B33: =IF(ISBLANK('Table 1-Revenue Requirement'!A39),"",'Table 1-Revenue Requirement'!A39) -> Anticipated | C33: =IF(ISBLANK('Table 1-Revenue Requirement'!B39),"",'Table 1-Revenue Requirement'!B39) -> Advice Letter | D33: =IF(ISBLANK('Table 1-Revenue Requirement'!C39),"",'Table 1-Revenue Requirement'!C39) ->  | E33: =IF(ISBLANK('Table 1-Revenue Requirement'!D39),"",'Table 1-Revenue Requirement'!D39) -> Rate base offsets (ALPs) | F33: =IF(ISBLANK('Table 1-Revenue Requirement'!E39),"",'Table 1-Revenue Requirement'!E39) -> Base rate increase | G33: =IF(ISBLANK('Table 1-Revenue Requirement'!F39),"",'Table 1-Revenue Requirement'!F39) ->  | H33: =IF(ISBLANK('Table 1-Revenue Requirement'!G39),"",'Table 1-Revenue Requirement'!G39) -> 
B34: =IF(ISBLANK('Table 1-Revenue Requirement'!A40),"",'Table 1-Revenue Requirement'!A40) -> Anticipated | C34: =IF(ISBLANK('Table 1-Revenue Requirement'!B40),"",'Table 1-Revenue Requirement'!B40) -> Advice Letter | D34: =IF(ISBLANK('Table 1-Revenue Requirement'!C40),"",'Table 1-Revenue Requirement'!C40) ->  | E34: =IF(ISBLANK('Table 1-Revenue Requirement'!D40),"",'Table 1-Revenue Requirement'!D40) -> Cost of capital | F34: =IF(ISBLANK('Table 1-Revenue Requirement'!E40),"",'Table 1-Revenue Requirement'!E40) -> Base rate change | G34: =IF(ISBLANK('Table 1-Revenue Requirement'!F40),"",'Table 1-Revenue Requirement'!F40) ->  | H34: =IF(ISBLANK('Table 1-Revenue Requirement'!G40),"",'Table 1-Revenue Requirement'!G40) -> 
B35: =IF(ISBLANK('Table 1-Revenue Requirement'!A41),"",'Table 1-Revenue Requirement'!A41) -> Anticipated | C35: =IF(ISBLANK('Table 1-Revenue Requirement'!B41),"",'Table 1-Revenue Requirement'!B41) -> Application | D35: =IF(ISBLANK('Table 1-Revenue Requirement'!C41),"",'Table 1-Revenue Requirement'!C41) ->  | E35: =IF(ISBLANK('Table 1-Revenue Requirement'!D41),"",'Table 1-Revenue Requirement'!D41) -> 20XX GRC | F35: =IF(ISBLANK('Table 1-Revenue Requirement'!E41),"",'Table 1-Revenue Requirement'!E41) -> Base rate change | G35: =IF(ISBLANK('Table 1-Revenue Requirement'!F41),"",'Table 1-Revenue Requirement'!F41) ->  | H35: =IF(ISBLANK('Table 1-Revenue Requirement'!G41),"",'Table 1-Revenue Requirement'!G41) -> 
D36: =IF(ISBLANK('Table 1-Revenue Requirement'!C42),"",'Table 1-Revenue Requirement'!C42) ->  | E36: =IF(ISBLANK('Table 1-Revenue Requirement'!D42),"",'Table 1-Revenue Requirement'!D42) ->  | F36: =IF(ISBLANK('Table 1-Revenue Requirement'!E42),"",'Table 1-Revenue Requirement'!E42) ->  | G36: =IF(ISBLANK('Table 1-Revenue Requirement'!F42),"",'Table 1-Revenue Requirement'!F42) ->  | H36: =IF(ISBLANK('Table 1-Revenue Requirement'!G42),"",'Table 1-Revenue Requirement'!G42) -> 
B37: Total Anticipated | I37: =SUM(I25:I36) -> 0 | J37: =SUM(J25:J36) -> 0 | K37: =SUM(K25:K36) -> 0 | L37: =SUM(L25:L36) -> 0 | M37: =SUM(M25:M36) -> 0
B38: CPUC Fee | D38: 1 | I38: =SUM(I6+I14+I23+I37)*0.0123 -> 3.3948 | J38: =SUM(J6+J14+J23+J37)*0.0123 -> 3.3948 | K38: =SUM(K6+K14+K23+K37)*0.0123 -> 3.3948 | L38: =SUM(L6+L14+L23+L37)*0.0123 -> 3.3948 | M38: =SUM(M6+M14+M23+M37)*0.0123 -> 3.3948
B39: Total Estimated Annual Bill, Not Including TBD Amounts | I39: =SUM(I6+I14+I23+I37)*1.0123 -> 279.3948 | J39: =SUM(J6+J14+J23+J37)*1.0123 -> 279.3948 | K39: =SUM(K6+K14+K23+K37)*1.0123 -> 279.3948 | L39: =SUM(L6+L14+L23+L37)*1.0123 -> 279.3948 | M39: =SUM(M6+M14+M23+M37)*1.0123 -> 279.3948
B40: Change in Estimated Annual Bill, as Compared to Year 1 | I40: n/a | J40: =J39-I39 -> 0 | K40: =K39-I39 -> 0 | L40: =L39-I39 -> 0 | M40: =M39-I39 -> 0
B41: CAP Residential Customers - Average Usage
B42: Status | C42: Proceedings | D42: Footnote Reference | E42: Description of Filing | F42: Revenue Recovery Mechanism | G42: Effective Date or Proposed Effective Date | H42: Expiration Date or Proposed Expiration Date | I42: 2019 | J42: 2020 | K42: 2021 | L42: 2022 | M42: 2023
B43: =IF(B6="","",B6) -> Baseline bill (incl. service & quantity charges) | C43: D.XX-XX-XXX/A. or AL | I43: =Baseline_Bill_LIRA_Avg -> 248.5714286 | J43: =Baseline_Bill_LIRA_Avg -> 248.5714286 | K43: =Baseline_Bill_LIRA_Avg -> 248.5714286 | L43: =Baseline_Bill_LIRA_Avg -> 248.5714286 | M43: =Baseline_Bill_LIRA_Avg -> 248.5714286
B44: Active | C44: A.18-XX-XX; D.19-XX-XXX | E44: (e.g. Bal. Acct., IRMA, WRAM) | F44: (e.g., amortization of balancing account, GRC base rate increase, etc.)
B45: Active | C45: A.18-XX-XXX; D.19-XX-XXX
B46: Active | C46: AL # XXXX
B47: Active | C47: AL # XXXX
B48: Active | C48: AL # XXXX
B49: Active | C49: AL # XXXX
B51: Total Active | I51: =SUM(I44:I50) -> 0 | J51: =SUM(J44:J50) -> 0 | K51: =SUM(K44:K50) -> 0 | L51: =SUM(L44:L50) -> 0 | M51: =SUM(M44:M50) -> 0
B52: =IF(B15="","",B15) -> 
B53: Pending - Filed | C53: AL # XXXX
B54: Pending - Filed | C54: AL # XXXX
B55: Pending - Filed | C55: AL # XXXX
B56: Pending - Filed | C56: AL # XXXX
B57: Pending - Filed | C57: A.XX-XX-XXX
B58: =IF(B21="","",B21) -> Pending - Filed | C58: =IF(C21="","",C21) -> A.XX-XX-XXX
B59: =IF(B22="","",B22) -> Pending - New Filing | C59: AL # XXXX
B60: Total Pending | I60: =SUM(I53:I59) -> 0 | J60: =SUM(J53:J59) -> 0 | K60: =SUM(K53:K59) -> 0 | L60: =SUM(L53:L59) -> 0 | M60: =SUM(M53:M59) -> 0
B61: =IF(B24="","",B24) -> 
B62: Anticipated | C62: Advice Letter | E62: IRMA (as appropriate) | F62: No change to stated rev. req.
B63: Anticipated | C63: Advice Letter | E63: 20XX Estimated Escalation Year Increase, Pending Earnings Test | F63: Base rate increase (est.)
B64: Anticipated | C64: Advice Letter | E64: 20XX Estimated Escalation Year Increase, Pending Earnings Test | F64: Base rate increase (est.)
B65: Anticipated | C65: Advice Letter | E65: 20XX WRAM/MCBA | F65: Amort. of balancing acct.
B66: Anticipated | C66: Advice Letter | E66: 20XX WRAM/MCBA | F66: Amort. of balancing acct.
B67: Anticipated | C67: Advice Letter | E67: 20XX WRAM/MCBA | F67: Amort. of balancing acct.
B68: Anticipated | C68: Advice Letter | E68: Supply Cost Offset | F68: Base rate change
B69: Anticipated | C69: Advice Letter | E69: Supply Cost Offset | F69: Base rate change
B70: Anticipated | C70: Advice Letter | E70: Rate base offsets (ALPs) | F70: Base rate increase
B71: Anticipated | C71: Advice Letter | E71: Cost of capital | F71: Base rate change
B72: Anticipated | C72: Application | E72: 20XX GRC | F72: Base rate change
D73: =IF(D36="","",D36) ->  | E73: =IF(E36="","",E36) ->  | F73: =IF(F36="","",F36) ->  | G73: =IF(G36="","",G36) ->  | H73: =IF(H36="","",H36) -> 
B74: Total Anticipated | I74: =SUM(I62:I73) -> 0 | J74: =SUM(J62:J73) -> 0 | K74: =SUM(K62:K73) -> 0 | L74: =SUM(L62:L73) -> 0 | M74: =SUM(M62:M73) -> 0
B75: CPUC Fee | D75: 1 | I75: =SUM(I43+I51+I60+I74)*0.0123 -> 3.057428571 | J75: =SUM(J43+J51+J60+J74)*0.0123 -> 3.057428571 | K75: =SUM(K43+K51+K60+K74)*0.0123 -> 3.057428571 | L75: =SUM(L43+L51+L60+L74)*0.0123 -> 3.057428571 | M75: =SUM(M43+M51+M60+M74)*0.0123 -> 3.057428571
B76: Total Estimated Annual Bill, Not Including TBD Amounts | I76: =SUM(I43+I51+I60+I74)*1.0123 -> 251.6288571 | J76: =SUM(J43+J51+J60+J74)*1.0123 -> 251.6288571 | K76: =SUM(K43+K51+K60+K74)*1.0123 -> 251.6288571 | L76: =SUM(L43+L51+L60+L74)*1.0123 -> 251.6288571 | M76: =SUM(M43+M51+M60+M74)*1.0123 -> 251.6288571
B77: Change in Estimated Annual Bill, as Compared to Year 1 | I77: n/a | J77: =J76-I76 -> 0 | K77: =K76-I76 -> 0 | L77: =L76-I76 -> 0 | M77: =M76-I76 -> 0
B78: Non-CAP Residential Customers - Tier 1 Usage
B79: Status | C79: Proceedings | D79: Footnote Reference | E79: Description of Filing | F79: Revenue Recovery Mechanism | G79: Effective Date or Proposed Effective Date | H79: Expiration Date or Proposed Expiration Date | I79: 2019 | J79: 2020 | K79: 2021 | L79: 2022 | M79: 2023
B80: =IF(B6="","",B6) -> Baseline bill (incl. service & quantity charges) | C80: D.XX-XX-XXX/A. or AL | I80: =Baseline_Bill_Non_LIRA_Tier_1 -> 264 | J80: =Baseline_Bill_Non_LIRA_Tier_1 -> 264 | K80: =Baseline_Bill_Non_LIRA_Tier_1 -> 264 | L80: =Baseline_Bill_Non_LIRA_Tier_1 -> 264 | M80: =Baseline_Bill_Non_LIRA_Tier_1 -> 264
B81: Active | C81: A.18-XX-XX; D.19-XX-XXX | E81: (e.g. Bal. Acct., IRMA, WRAM) | F81: (e.g., amortization of balancing account, GRC base rate increase, etc.)
B82: Active | C82: A.18-XX-XXX; D.19-XX-XXX
B83: Active | C83: AL # XXXX
B84: Active | C84: AL # XXXX
B85: Active | C85: AL # XXXX
B86: Active | C86: AL # XXXX
B88: Total Active | I88: =SUM(I81:I87) -> 0 | J88: =SUM(J81:J87) -> 0 | K88: =SUM(K81:K87) -> 0 | L88: =SUM(L81:L87) -> 0 | M88: =SUM(M81:M87) -> 0
B89: =IF(B15="","",B15) -> 
B90: Pending - Filed | C90: AL # XXXX
B91: Pending - Filed | C91: AL # XXXX
B92: Pending - Filed | C92: AL # XXXX
B93: Pending - Filed | C93: AL # XXXX
B94: Pending - Filed | C94: A.XX-XX-XXX
B95: =IF(B21="","",B21) -> Pending - Filed | C95: =IF(C21="","",C21) -> A.XX-XX-XXX
B96: =IF(B22="","",B22) -> Pending - New Filing | C96: AL # XXXX
B97: Total Pending | I97: =SUM(I90:I96) -> 0 | J97: =SUM(J90:J96) -> 0 | K97: =SUM(K90:K96) -> 0 | L97: =SUM(L90:L96) -> 0 | M97: =SUM(M90:M96) -> 0
B98: =IF(B24="","",B24) -> 
B99: Anticipated | C99: Advice Letter | E99: IRMA (as appropriate) | F99: No change to stated rev. req.
B100: Anticipated | C100: Advice Letter | E100: 20XX Estimated Escalation Year Increase, Pending Earnings Test | F100: Base rate increase (est.)
B101: Anticipated | C101: Advice Letter | E101: 20XX Estimated Escalation Year Increase, Pending Earnings Test | F101: Base rate increase (est.)
B102: Anticipated | C102: Advice Letter | E102: 20XX WRAM/MCBA | F102: Amort. of balancing acct.
B103: Anticipated | C103: Advice Letter | E103: 20XX WRAM/MCBA | F103: Amort. of balancing acct.
B104: Anticipated | C104: Advice Letter | E104: 20XX WRAM/MCBA | F104: Amort. of balancing acct.
B105: Anticipated | C105: Advice Letter | E105: Supply Cost Offset | F105: Base rate change
B106: Anticipated | C106: Advice Letter | E106: Supply Cost Offset | F106: Base rate change
B107: Anticipated | C107: Advice Letter | E107: Rate base offsets (ALPs) | F107: Base rate increase
B108: Anticipated | C108: Advice Letter | E108: Cost of capital | F108: Base rate change
B109: Anticipated | C109: Application | E109: 20XX GRC | F109: Base rate change
D110: =IF(D36="","",D36) ->  | E110: =IF(E36="","",E36) ->  | F110: =IF(F36="","",F36) ->  | G110: =IF(G36="","",G36) ->  | H110: =IF(H36="","",H36) -> 
B111: Total Anticipated | I111: =SUM(I99:I110) -> 0 | J111: =SUM(J99:J110) -> 0 | K111: =SUM(K99:K110) -> 0 | L111: =SUM(L99:L110) -> 0 | M111: =SUM(M99:M110) -> 0
B112: CPUC Fee | D112: 1 | I112: =SUM(I80+I88+I97+I111)*0.0123 -> 3.2472 | J112: =SUM(J80+J88+J97+J111)*0.0123 -> 3.2472 | K112: =SUM(K80+K88+K97+K111)*0.0123 -> 3.2472 | L112: =SUM(L80+L88+L97+L111)*0.0123 -> 3.2472 | M112: =SUM(M80+M88+M97+M111)*0.0123 -> 3.2472
B113: Total Estimated Annual Bill, Not Including TBD Amounts | I113: =SUM(I80+I88+I97+I111)*1.0123 -> 267.2472 | J113: =SUM(J80+J88+J97+J111)*1.0123 -> 267.2472 | K113: =SUM(K80+K88+K97+K111)*1.0123 -> 267.2472 | L113: =SUM(L80+L88+L97+L111)*1.0123 -> 267.2472 | M113: =SUM(M80+M88+M97+M111)*1.0123 -> 267.2472
B114: Change in Estimated Annual Bill, as Compared to Year 1 | I114: n/a | J114: =J113-I113 -> 0 | K114: =K113-I113 -> 0 | L114: =L113-I113 -> 0 | M114: =M113-I113 -> 0
B115: CAP Residential Customers - Tier 1 Usage
B116: Status | C116: Proceedings | D116: Footnote Reference | E116: Description of Filing | F116: Revenue Recovery Mechanism | G116: Effective Date or Proposed Effective Date | H116: Expiration Date or Proposed Expiration Date | I116: 2019 | J116: 2020 | K116: 2021 | L116: 2022 | M116: 2023
B117: =IF(B6="","",B6) -> Baseline bill (incl. service & quantity charges) | C117: D.XX-XX-XXX/A. or AL | I117: =Baseline_Bill_LIRA_Tier_1 -> 248.5714286 | J117: =Baseline_Bill_LIRA_Tier_1 -> 248.5714286 | K117: =Baseline_Bill_LIRA_Tier_1 -> 248.5714286 | L117: =Baseline_Bill_LIRA_Tier_1 -> 248.5714286 | M117: =Baseline_Bill_LIRA_Tier_1 -> 248.5714286
B118: Active | C118: A.18-XX-XX; D.19-XX-XXX | E118: (e.g. Bal. Acct., IRMA, WRAM) | F118: (e.g., amortization of balancing account, GRC base rate increase, etc.)
B119: Active | C119: A.18-XX-XXX; D.19-XX-XXX
B120: Active | C120: AL # XXXX
B121: Active | C121: AL # XXXX
B122: Active | C122: AL # XXXX
B123: Active | C123: AL # XXXX
B125: Total Active | I125: =SUM(I118:I124) -> 0 | J125: =SUM(J118:J124) -> 0 | K125: =SUM(K118:K124) -> 0 | L125: =SUM(L118:L124) -> 0 | M125: =SUM(M118:M124) -> 0
B126: =IF(B15="","",B15) -> 
B127: Pending - Filed | C127: AL # XXXX
B128: Pending - Filed | C128: AL # XXXX
B129: Pending - Filed | C129: AL # XXXX
B130: Pending - Filed | C130: AL # XXXX
B131: Pending - Filed | C131: A.XX-XX-XXX
B132: =IF(B21="","",B21) -> Pending - Filed | C132: =IF(C21="","",C21) -> A.XX-XX-XXX
B133: =IF(B22="","",B22) -> Pending - New Filing | C133: AL # XXXX
B134: Total Pending | I134: =SUM(I127:I133) -> 0 | J134: =SUM(J127:J133) -> 0 | K134: =SUM(K127:K133) -> 0 | L134: =SUM(L127:L133) -> 0 | M134: =SUM(M127:M133) -> 0
B135: =IF(B24="","",B24) -> 
B136: Anticipated | C136: Advice Letter | E136: IRMA (as appropriate) | F136: No change to stated rev. req.
B137: Anticipated | C137: Advice Letter | E137: 20XX Estimated Escalation Year Increase, Pending Earnings Test | F137: Base rate increase (est.)
B138: Anticipated | C138: Advice Letter | E138: 20XX Estimated Escalation Year Increase, Pending Earnings Test | F138: Base rate increase (est.)
B139: Anticipated | C139: Advice Letter | E139: 20XX WRAM/MCBA | F139: Amort. of balancing acct.
B140: Anticipated | C140: Advice Letter | E140: 20XX WRAM/MCBA | F140: Amort. of balancing acct.
B141: Anticipated | C141: Advice Letter | E141: 20XX WRAM/MCBA | F141: Amort. of balancing acct.
B142: Anticipated | C142: Advice Letter | E142: Supply Cost Offset | F142: Base rate change
B143: Anticipated | C143: Advice Letter | E143: Supply Cost Offset | F143: Base rate change
B144: Anticipated | C144: Advice Letter | E144: Rate base offsets (ALPs) | F144: Base rate increase
B145: Anticipated | C145: Advice Letter | E145: Cost of capital | F145: Base rate change
B146: Anticipated | C146: Application | E146: 20XX GRC | F146: Base rate change
B147: =IF(B36="","",B36) -> 
B148: Total Anticipated | I148: =SUM(I136:I147) -> 0 | J148: =SUM(J136:J147) -> 0 | K148: =SUM(K136:K147) -> 0 | L148: =SUM(L136:L147) -> 0 | M148: =SUM(M136:M147) -> 0
B149: CPUC Fee | D149: 1 | I149: =SUM(I117+I125+I134+I148)*0.0123 -> 3.057428571 | J149: =SUM(J117+J125+J134+J148)*0.0123 -> 3.057428571 | K149: =SUM(K117+K125+K134+K148)*0.0123 -> 3.057428571 | L149: =SUM(L117+L125+L134+L148)*0.0123 -> 3.057428571 | M149: =SUM(M117+M125+M134+M148)*0.0123 -> 3.057428571
B150: Total Estimated Annual Bill, Not Including TBD Amounts | I150: =SUM(I117+I125+I134+I148)*1.0123 -> 251.6288571 | J150: =SUM(J117+J125+J134+J148)*1.0123 -> 251.6288571 | K150: =SUM(K117+K125+K134+K148)*1.0123 -> 251.6288571 | L150: =SUM(L117+L125+L134+L148)*1.0123 -> 251.6288571 | M150: =SUM(M117+M125+M134+M148)*1.0123 -> 251.6288571
B151: Change in Estimated Annual Bill, as Compared to Year 1 | I151: n/a | J151: =J150-I150 -> 0 | K151: =K150-I150 -> 0 | L151: =L150-I150 -> 0 | M151: =M150-I150 -> 0
B154: Footnotes and Assumptions:
B155: 1. CPUC User Fee of 1.23% corresponds to the most recent resolution setting the User Fee (i.e., Resolution M-4839). Update as necessary.

Sheet EXAMPLES
A1: The next three sheets present hypothetical examples included to assist you with filling out the template.
A2: Tables Ex2 and Ex3 (i.e., example tables 2 and 3) depict how named cells carry through and prepopulate across tables.
A3: Tables Ex3 and Ex4 depict how to depict an escalation year request, as well as temporary surcharges (using two hypothetical surcharges).

Sheet Table Ex2-Residential Avg Usa
B2: Company: | E2: Filing Date: | F2: 2019-09-01
B3: Ratemaking Area: | E3: Filing Year: | F3: 2019
C5: All Residential Customers | D5: Non-Customer Assistance Program (CAP) Customers | E5: CAP Customers | F5: Tier 1 Usage (up to 12 CCFs/month) for Non-CAP Customers | G5: Tier 1 Usage (up to 12 CCFs/month) for CAP Customers
B6: Total Residential CCFs Used in 12 Months (for last calendar year) | C6: =D6+E6 -> 18000000 | D6: 15000000 | E6: 3000000 | F6: N/A | G6: N/A
B7: Total Number of Residential Connections (at the end of the last calendar year) | C7: =D7+E7 -> 121000 | D7: 100000 | E7: 21000 | F7: N/A | G7: N/A
B8: Residential Average Annual Usage (CCFs) Per Connection, or Tier 1 Annual Usage Amount | C8: =C6/C7 -> 148.7603306 | D8: =D6/D7 -> 150 | E8: =E6/E7 -> 142.8571429 | F8: =12*12 -> 144 | G8: =MIN(LIRA_Avg_Usage_Exp,'Table Ex3 Inputs'!F7*12) -> 142.8571429
B9: Current Residential Average Annual Bill | C9: N/A | D9: ='Table Ex3-Current Bill'!C22 -> 318.12 | E9: ='Table Ex3-Current Bill'!D22 -> 213.3042857 | F9: ='Table Ex3-Current Bill'!E22 -> 304.42 | G9: ='Table Ex3-Current Bill'!F22 -> 213.3042857
B12: Notes and Assumptions:

Sheet Table Ex3 Inputs
C1: Quantity Basis | D1: CCF
C3: Variable Charge Calculation | I3: Non-CAP Average Use | J3: CAP Average Use
C4: Number of Tiers | D4: 2 | I4: =IFERROR(Non_LIRA_Avg_Usage/bills,0) -> 12.5 | J4: =IFERROR(LIRA_Avg_Usage/bills,0) -> 11.9047619
D5: Tier Start | E5: ="Tier End ("&D1&")" -> Tier End (CCF) | F5: Tier Width | G5: Non-CAP Tier Rate | H5: CAP Tier Rate | I5: Non-CAP Average Consumption In Tier | J5: CAP Avg Consumption in Tier | K5: Average Monthly Bill in Tier | L5: Average CAP Monthly Bill in Tier
B6: 1 | G6: (A) | H6: (B) | I6: (C) | J6: (D) | K6: (E) = (A) * (C) | L6: (F) = (B) * (D)
B7: 1 | C7: Tier 1 | D7: =IF(D4=1,"Uniform Rate","0 "&D1&" to") -> 0 CCF to | E7: 12 | F7: =IF(D4=1,"",E7) -> 12 | G7: 1 | H7: 0.9 | I7: =IF(B7<=$D$4,MIN($F7,I$4),"") -> 12 | J7: =IF(B7<=$D$4,MIN($F7,J$4),"") -> 11.9047619 | K7: =IF($B7<=$D$4,I7*G7,"") -> 12 | L7: =H7*J7 -> 10.71428571
B8: 2 | C8: =IF($B8<=$D$4,"Tier "&B8,"") -> Tier 2 | D8: =IF($B8<$D$4,E7&" "&$D$1&" to",IF($B8=D$4,"Over "&E7&" "&$D$1,"")) -> Over 12 CCF | F8: =IF($B8<$D$4,E8-E7,"") ->  | G8: 2 | H8: 2 | I8: =IF(B8<=$D$4,MIN(I$4-SUM(I$7:I7),$F8),"") -> 0.5 | J8: =IF(B8<=$D$4,MIN(J$4-SUM(J$7:J7),$F8),"") -> 0 | K8: 1 | L8: =H8*J8 -> 0
B9: 3 | I9: =IF(B9<=$D$4,MIN(I$4-SUM(I$7:I8),$F9),"") ->  | J9: =IF(B9<=$D$4,MIN(J$4-SUM(J$7:J8),$F9),"") ->  | K9: =IF($B9<=$D$4,I9*G9,"") ->  | L9: =IF($B9<=$D$4,J9*IF(#REF!="percentage",G9*(1-#REF!),H9),"") -> 
B10: 4 | I10: =IF(B10<=$D$4,MIN(I$4-SUM(I$7:I9),$F10),"") ->  | J10: =IF(B10<=$D$4,MIN(J$4-SUM(J$7:J9),$F10),"") ->  | L10: =IF($B10<=$D$4,J10*IF(#REF!="percentage",G10*(1-#REF!),H10),"") -> 
B11: 5 | I11: =IF(B11<=$D$4,MIN(I$4-SUM(I$7:I10),$F11),"") ->  | J11: =IF(B11<=$D$4,MIN(J$4-SUM(J$7:J10),$F11),"") ->  | L11: =IF($B11<=$D$4,J11*IF(#REF!="percentage",G11*(1-#REF!),H11),"") -> 
B12: 6 | I12: =IF(B12<=$D$4,MIN(I$4-SUM(I$7:I11),$F12),"") ->  | J12: =IF(B12<=$D$4,MIN(J$4-SUM(J$7:J11),$F12),"") ->  | L12: =IF($B12<=$D$4,J12*IF(#REF!="percentage",G12*(1-#REF!),H12),"") -> 
B13: 7 | I13: =IF(B13<=$D$4,MIN(I$4-SUM(I$7:I12),$F13),"") ->  | J13: =IF(B13<=$D$4,MIN(J$4-SUM(J$7:J12),$F13),"") ->  | L13: =IF($B13<=$D$4,J13*IF(#REF!="percentage",G13*(1-#REF!),H13),"") -> 
B14: 8 | I14: =IF(B14<=$D$4,MIN(I$4-SUM(I$7:I13),$F14),"") ->  | J14: =IF(B14<=$D$4,MIN(J$4-SUM(J$7:J13),$F14),"") ->  | L14: =IF($B14<=$D$4,J14*IF(#REF!="percentage",G14*(1-#REF!),H14),"") -> 
B15: 9 | I15: =IF(B15<=$D$4,MIN(I$4-SUM(I$7:I14),$F15),"") ->  | J15: =IF(B15<=$D$4,MIN(J$4-SUM(J$7:J14),$F15),"") ->  | L15: =IF($B15<=$D$4,J15*IF(#REF!="percentage",G15*(1-#REF!),H15),"") -> 
K16: =SUM(K7:K15) -> 13 | L16: =SUM(L7:L15) -> 10.71428571
C18: Fixed Charge Calculation
C19: Most Common Residential Meter | D19: 5/8" x 3/4"
C20: Meter Size | D20: Non-CAP Fixed Charge | E20: CAP Fixed Charge (prior to credit or discount)
C21: =D19&" Fixed Charges" -> 5/8" x 3/4" Fixed Charges | D21: 10 | E21: 10
C23: Surcharges, Credits, Fees and Taxes | D23: Type of Charge | E23: Amount of Charge (Non-CAP) | F23: Amount of Charge (CAP)
C24: CAP Credit | D24: Fixed | F24: -5
C25: CAP Surcharge | D25: Variable | E25: 0.1
C26: Temporary Surcharge #1 | D26: Variable | E26: 0.2 | F26: 0.2
C27: Temporary Surcharge #2 | D27: Variable | E27: 0.01 | F27: 0.01
C28: … | D28: Fixed
C29: … | D29: Fixed

Sheet Table Ex3-Current Bill
B2: Company: | F2: Filing Date: | G2: 2019-09-01
B3: Ratemaking Area: | F3: Filing Year: | G3: 2019
B5: ="Average Annual Bill Calculation for Residential "&'Table Ex3 Inputs'!D19&" Meter as of the filing date:" -> Average Annual Bill Calculation for Residential 5/8" x 3/4" Meter as of the filing date:
C6: Average Usage | E6: Tier 1 Usage | G6: Appropriate Rate
C7: Non-CAP | D7: CAP | E7: Non-CAP | F7: CAP
B8: Usage (Ccfs/Year) | C8: =Non_LIRA_Avg_Usage_Exp -> 150 | D8: =LIRA_Avg_Usage_Exp -> 142.8571429 | E8: =Non_LIRA_Tier_1_Usage_Exp -> 144 | F8: =LIRA_Tier_1_Usage_Exp -> 142.8571429 | G8: (Incl. Start and Expiration Date as Appropriate)
B10: Service Charge | C10: ='Table Ex3 Inputs'!D21*bills_exp -> 120 | D10: ='Table Ex3 Inputs'!E21*bills_exp -> 120 | E10: ='Table Ex3 Inputs'!D21*bills_exp -> 120 | F10: ='Table Ex3 Inputs'!E21*bills_exp -> 120 | G10: $10.00 per month
B11: Quantity Charge | C11: ='Table Ex3 Inputs'!K16*bills -> 156 | D11: ='Table Ex3 Inputs'!L16*bills -> 128.5714286 | E11: ='Table Ex3 Inputs'!$G$7*'Table Ex3 Inputs'!I$7*bills_exp -> 144 | F11: ='Table Ex3 Inputs'!L7*bills_exp -> 128.5714286 | G11: $1.000 per CCF
B12: Subtotal: | C12: =C11+C10 -> 276 | D12: =D11+D10 -> 248.5714286 | E12: =E11+E10 -> 264 | F12: =F11+F10 -> 248.5714286
B14: LIRA Credit | C14: =IF('Table Ex3 Inputs'!$D24="Fixed",'Table Ex3 Inputs'!$E24*bills_exp,'Table Ex3 Inputs'!$E24*C$8) -> 0 | D14: =IF('Table Ex3 Inputs'!$D24="Fixed",'Table Ex3 Inputs'!$F24*bills_exp,'Table Ex3 Inputs'!$F24*D$8) -> -60 | E14: =IF('Table Ex3 Inputs'!$D24="Fixed",'Table Ex3 Inputs'!$E24*bills_exp,'Table Ex3 Inputs'!$E24*E$8) -> 0 | F14: =IF('Table Ex3 Inputs'!$D24="Fixed",'Table Ex3 Inputs'!$F24*bills_exp,'Table Ex3 Inputs'!$F24*F$8) -> -60 | G14: $5.00 per month
B15: LIRA Surcharge | C15: =IF('Table Ex3 Inputs'!$D25="Fixed",'Table Ex3 Inputs'!$E25*bills_exp,'Table Ex3 Inputs'!$E25*C$8) -> 15 | E15: =IF('Table Ex3 Inputs'!$D25="Fixed",'Table Ex3 Inputs'!$E25*bills_exp,'Table Ex3 Inputs'!$E25*E$8) -> 14.4 | G15: $0.100 per CCF
B16: Temporary Surcharge #1 | C16: =IF('Table Ex3 Inputs'!$D26="Fixed",'Table Ex3 Inputs'!$E26*bills_exp,'Table Ex3 Inputs'!$E26*C$8)*(9/12) -> 22.5 | D16: =IF('Table Ex3 Inputs'!$D26="Fixed",'Table Ex3 Inputs'!$F26*bills_exp,'Table Ex3 Inputs'!$F26*D$8)*(9/12) -> 21.42857143 | E16: =IF('Table Ex3 Inputs'!$D26="Fixed",'Table Ex3 Inputs'!$E26*bills_exp,'Table Ex3 Inputs'!$E26*E$8)*(9/12) -> 21.6 | F16: =IF('Table Ex3 Inputs'!$D26="Fixed",'Table Ex3 Inputs'!$F26*bills_exp,'Table Ex3 Inputs'!$F26*F$8)*(9/12) -> 21.42857143 | G16: $0.200 per CCF (applies 1/1/2018 - 10/1/2019
B17: Temporary Surcharge #2 | C17: =IF('Table Ex3 Inputs'!$D27="Fixed",'Table Ex3 Inputs'!$E27*bills_exp,'Table Ex3 Inputs'!$E27*C$8)*(6/12) -> 0.75 | D17: =IF('Table Ex3 Inputs'!$D27="Fixed",'Table Ex3 Inputs'!$F27*bills_exp,'Table Ex3 Inputs'!$F27*D$8)*(6/12) -> 0.7142857143 | E17: =IF('Table Ex3 Inputs'!$D27="Fixed",'Table Ex3 Inputs'!$E27*bills_exp,'Table Ex3 Inputs'!$E27*E$8)*(6/12) -> 0.72 | F17: =IF('Table Ex3 Inputs'!$D27="Fixed",'Table Ex3 Inputs'!$F27*bills_exp,'Table Ex3 Inputs'!$F27*F$8)*(6/12) -> 0.7142857143 | G17: $0.010 per CCF (applies 7/1/2019 - 3/1/2020
B18: Subtotal: | C18: =C14+C15+C16+C17 -> 38.25 | D18: =D14+D15+D16+D17 -> -37.85714286 | E18: =E14+E15+E16+E17 -> 36.72 | F18: =F14+F15+F16+F17 -> -37.85714286
B20: CPUC Fee | C20: =ROUND((SUM(C12,C18)*0.0123),2) -> 3.87 | D20: =ROUND(((SUM(D12,D18)*0.0123)),2) -> 2.59 | E20: =ROUND((SUM(E12,E18)*0.0123),2) -> 3.7 | F20: =ROUND((SUM(F12,F18)*0.0123),2) -> 2.59 | G20: 1.23%
B22: Total Avg. Annual Bill for 2019: | C22: =SUM(C12,C18,C20) -> 318.12 | D22: =SUM(D12,D18,D20) -> 213.3042857 | E22: =SUM(E12,E18, E20) -> 304.42 | F22: =SUM(F12,F18,F20) -> 213.3042857
B25: ="Average Monthly Bill Calculation for Residential "&'Table 3 Inputs'!D20&" Meter as of the filing date:" -> Average Monthly Bill Calculation for Residential 5/8" x 3/4" Meter as of the filing date:
C26: Average Usage | E26: Tier 1 Usage | G26: Appropriate Rate
C27: Non-CAP | D27: CAP | E27: Non-CAP | F27: CAP
B28: Usage (Ccfs/Month) | C28: =Non_LIRA_Avg_Usage_Exp/12 -> 12.5 | D28: =LIRA_Avg_Usage_Exp/12 -> 11.9047619 | E28: =Non_LIRA_Tier_1_Usage_Exp/12 -> 12 | F28: =LIRA_Tier_1_Usage_Exp/12 -> 11.9047619 | G28: (Incl. Start and Expiration Date as Appropriate)
B30: Service Charge | C30: ='Table Ex3 Inputs'!D$21*bills_exp/12 -> 10 | D30: ='Table Ex3 Inputs'!E$21*bills_exp/12 -> 10 | E30: ='Table Ex3 Inputs'!D$21*bills_exp/12 -> 10 | F30: ='Table Ex3 Inputs'!E$21*bills_exp/12 -> 10 | G30: $10.00 per month
B31: Quantity Charge | C31: =IFERROR(SUMPRODUCT('Table Ex3 Inputs'!G6:G15,'Table Ex3 Inputs'!I6:I15),0) -> 13 | D31: =IFERROR(SUMPRODUCT('Table Ex3 Inputs'!H6:H15,'Table Ex3 Inputs'!J6:J15),0) -> 10.71428571 | E31: ='Table Ex3 Inputs'!$G$7*E28 -> 12 | F31: ='Table Ex3 Inputs'!$H$7*F28 -> 10.71428571 | G31: $1.000 per CCF
B32: Subtotal: | C32: =C31+C30 -> 23 | D32: =D31+D30 -> 20.71428571 | E32: =E31+E30 -> 22 | F32: =F31+F30 -> 20.71428571
B34: LIRA Credit | C34: =IF('Table Ex3 Inputs'!$D24="Fixed",'Table Ex3 Inputs'!$E24,'Table Ex3 Inputs'!$E24*C$28) -> 0 | D34: =IF('Table Ex3 Inputs'!$D24="Fixed",'Table Ex3 Inputs'!$F24,'Table Ex3 Inputs'!$F24*D$28) -> -5 | E34: =IF('Table Ex3 Inputs'!$D24="Fixed",'Table Ex3 Inputs'!$E24,'Table Ex3 Inputs'!$E24*E$28) -> 0 | F34: =IF('Table Ex3 Inputs'!$D24="Fixed",'Table Ex3 Inputs'!$F24,'Table Ex3 Inputs'!$F24*F$28) -> -5 | G34: $5.00 per month
B35: LIRA Surcharge | C35: =IF('Table Ex3 Inputs'!$D25="Fixed",'Table Ex3 Inputs'!$E25,'Table Ex3 Inputs'!$E25*C$28) -> 1.25 | D35: =IF('Table Ex3 Inputs'!$D25="Fixed",'Table Ex3 Inputs'!$F25,'Table Ex3 Inputs'!$F25*D$28) -> 0 | E35: =IF('Table Ex3 Inputs'!$D25="Fixed",'Table Ex3 Inputs'!$E25,'Table Ex3 Inputs'!$E25*E$28) -> 1.2 | F35: =IF('Table Ex3 Inputs'!$D25="Fixed",'Table Ex3 Inputs'!$F25,'Table Ex3 Inputs'!$F25*F$28) -> 0 | G35: $0.100 per CCF
B36: Temporary Surcharge #1 | C36: =IF('Table Ex3 Inputs'!$D26="Fixed",'Table Ex3 Inputs'!$E26,'Table Ex3 Inputs'!$E26*C$28) -> 2.5 | D36: =IF('Table Ex3 Inputs'!$D26="Fixed",'Table Ex3 Inputs'!$F26,'Table Ex3 Inputs'!$F26*D$28) -> 2.380952381 | E36: =IF('Table Ex3 Inputs'!$D26="Fixed",'Table Ex3 Inputs'!$E26,'Table Ex3 Inputs'!$E26*E$28) -> 2.4 | F36: =IF('Table Ex3 Inputs'!$D26="Fixed",'Table Ex3 Inputs'!$F26,'Table Ex3 Inputs'!$F26*F$28) -> 2.380952381 | G36: $0.200 per CCF (applies 1/1/2018 - 10/1/2019
B37: Temporary Surcharge #2 | C37: =IF('Table Ex3 Inputs'!$D27="Fixed",'Table Ex3 Inputs'!$E27,'Table Ex3 Inputs'!$E27*C$28) -> 0.125 | D37: =IF('Table Ex3 Inputs'!$D27="Fixed",'Table Ex3 Inputs'!$F27,'Table Ex3 Inputs'!$F27*D$28) -> 0.119047619 | E37: =IF('Table Ex3 Inputs'!$D27="Fixed",'Table Ex3 Inputs'!$E27,'Table Ex3 Inputs'!$E27*E$28) -> 0.12 | F37: =IF('Table Ex3 Inputs'!$D27="Fixed",'Table Ex3 Inputs'!$F27,'Table Ex3 Inputs'!$F27*F$28) -> 0.119047619 | G37: $0.010 per CCF (applies 7/1/2019 - 3/1/2020
B38: Subtotal: | C38: =C34+C35+C36+C37 -> 3.875 | D38: =D34+D35+D36+D37 -> -2.5 | E38: =E34+E35+E36+E37 -> 3.72 | F38: =F34+F35+F36+F37 -> -2.5
B40: CPUC Fee | C40: =ROUND((SUM(C32,C38)*0.0123),2) -> 0.33 | D40: =ROUND((SUM(D32,D38)*0.0123),2) -> 0.22 | E40: =ROUND((SUM(E32,E38)*0.0123),2) -> 0.32 | F40: =ROUND((SUM(F32,F38)*0.0123),2) -> 0.22 | G40: 1.23%
B42: Total Avg. Monthly Bill for July 2019: | C42: =SUM(C32,C38,C40) -> 27.205 | D42: =SUM(D32,D38,D40) -> 18.43428571 | E42: =SUM(E32,E38,E40) -> 26.04 | F42: =SUM(F32,F38,F40) -> 18.43428571
B45: Estimated Incremental Annual Bill Impact for Residential ___" Meter with 2020 and 2021 Rate Escalation related to 2017 GRC:
B46: 2020 | C46: Average Usage | E46: Tier 1 Usage
C47: Non-CAP | D47: CAP | E47: Non-CAP | F47: CAP
B48: Service Charge | C48: =(11-10)*12 -> 12 | D48: =(11-10)*12 -> 12 | E48: =(11-10)*12 -> 12 | F48: =(11-10)*12 -> 12 | G48: From $10 to $11 per month
B49: Quantity Charge | C49: =ROUND((C8*(1.1-1)),2) -> 15 | D49: =ROUND((D8*(1.1-1)),2) -> 14.29 | E49: =ROUND((E8*(1.1-1)),2) -> 14.4 | F49: =ROUND((F8*(1.1-1)),2) -> 14.29 | G49: From $1.000 to $1.100 per CCF
B51: Increm. Ann. Impact | C51: =SUM(C48:C50) -> 27 | D51: =SUM(D48:D50) -> 26.29 | E51: =SUM(E48:E50) -> 26.4 | F51: =SUM(F48:F50) -> 26.29
B53: 2021 | C53: Average Usage | E53: Tier 1 Usage
C54: Non-CAP | D54: CAP | E54: Non-CAP | F54: CAP
B55: Service Charge | C55: To be filled out for all relevant escalation years. | G55: From $X.XX to $X.XX per month
B56: Quantity Charge | G56: From $X.XXX to $X.XXX per CCF
B58: Increm. Ann. Impact | C58: =SUM(C55:C57) -> 0 | D58: =SUM(D55:D57) -> 0 | E58: =SUM(E55:E57) -> 0 | F58: =SUM(F55:F57) -> 0
B60: Notes and Assumptions:
B61: CPUC User Fee of 1.23% corresponds to the most recent resolution setting the User Fee (i.e., Resolution M-4839). Update as necessary.
B62: Current Residential Average Annual Bill based on most common residential meter size for RMA, which is _____.
B63: Average annual bill calculated with all surcharges, fees, etc. active as of form submission date.
B64: Average annual bill above does not include any pending or scheduled filings.
B65: City tax on water utility services (percentage of bill amount) ranges from __% to __ % within the RMA, no city tax amount included in average bill above since most areas are not assessed a tax on water services.

Sheet Table Ex4-Impact to Avg Bill
B1: Company: | F1: Filing Date: | G1: 2019-09-01
B2: Ratemaking Area: | F2: Filing Year: | G2: 2019
I4: Annual Bill Impacts (For Both Non-CAP and CAP Customers at Average and Tier 1 Usage Amounts)
A5: Non-CAP Residential Customers - Average Usage | B5: Status | C5: Proceedings | D5: Footnote Reference | E5: Description of Filing | F5: Revenue Recovery Mechanism | G5: Effective Date or Proposed Effective Date | H5: Expiration Date or Proposed Expiration Date | I5: 2019 | J5: 2020 | K5: 2021 | L5: 2022 | M5: 2023
B6: Baseline bill (incl. service & quantity charges) | C6: D.XX-XX-XXX/A. or AL | I6: =Baseline_Bill_Non_LIRA_Avg_Exp -> 276 | J6: =Baseline_Bill_Non_LIRA_Avg_Exp -> 276 | K6: =Baseline_Bill_Non_LIRA_Avg_Exp -> 276 | L6: =Baseline_Bill_Non_LIRA_Avg_Exp -> 276 | M6: =Baseline_Bill_Non_LIRA_Avg_Exp -> 276
B7: CAP Surcharge | C7: A.18-XX-XXX; D.19-XX-XXX | E7: (e.g., Bal. Acct., IRMA, WRAM) | F7: (e.g., amortization of balancing account, GRC base rate increase, etc.) | I7: ='Table Ex3-Current Bill'!C15 -> 15 | J7: ='Table Ex3-Current Bill'!C15 -> 15 | K7: ='Table Ex3-Current Bill'!C15 -> 15 | L7: TBD | M7: TBD
B8: Temporary Surcharge #1 | C8: A.18-XX-XXX; D.19-XX-XXX | G8: 2018-01-01 | H8: 2019-10-01 | I8: ='Table Ex3-Current Bill'!C16 -> 22.5 | J8: 0 | K8: 0 | L8: 0 | M8: 0
B9: Temporary Surcharge #2 | C9: AL # XXXX | G9: 2019-07-01 | H9: 2020-03-01 | I9: ='Table Ex3-Current Bill'!C17 -> 0.75 | J9: =ROUND((Non_LIRA_Avg_Usage_Exp*0.01),2)*(2/12) -> 0.25 | K9: 0 | L9: 0 | M9: 0
B14: Total Active | I14: =SUM(I7:I13) -> 38.25 | J14: =SUM(J7:J13) -> 15.25 | K14: =SUM(K7:K13) -> 15 | L14: =SUM(L7:L13) -> 0 | M14: =SUM(M7:M13) -> 0
B16: Pending (New) | C16: AL # XXXX | E16: 2019 Estimated Escalation Year Increase, Pending Earnings Test | F16: Base rate increase | G16: 2020-01-01 | I16: 0 | J16: ='Table Ex3-Current Bill'!C51 -> 27 | K16: =J16 -> 27 | L16: Not applicable | M16: Not applicable
B22: Total Pending | I22: =SUM(I16:I21) -> 0 | J22: =SUM(J16:J21) -> 27 | K22: =SUM(K16:K21) -> 27 | L22: =SUM(L16:L21) -> 0 | M22: =SUM(M16:M21) -> 0
B24: Anticipated | C24: Advice Letter | E24: IRMA (as appropriate) | F24: No change to stated rev. req. | I24: Fill in these cells according to the instructions.
B25: Anticipated | C25: Advice Letter | E25: 20XX Estimated Escalation Year Increase, Pending Earnings Test | F25: Base rate increase (est.) | I25: As an example for cases where dollar estimates are not available, appropriate cell highlighting is depicted below for a hypothetical 2020 GRC.
B26: Anticipated | C26: Advice Letter | E26: 20XX WRAM/MCBA | F26: Amort. of balancing acct.
B27: Anticipated | C27: Advice Letter | E27: 20XX WRAM/MCBA | F27: Amort. of balancing acct.
B28: Anticipated | C28: Advice Letter | E28: 20XX WRAM/MCBA | F28: Amort. of balancing acct.
B29: Anticipated | C29: Advice Letter | E29: Supply Cost Offset | F29: Base rate change
B30: Anticipated | C30: Advice Letter | E30: Supply Cost Offset | F30: Base rate change
B31: Anticipated | C31: Advice Letter | E31: Rate base offsets (ALPs) | F31: Base rate increase
B32: Anticipated | C32: Advice Letter | E32: Cost of capital | F32: Base rate change | J32: TBD | K32: TBD | L32: TBD
B33: Anticipated | C33: Application | E33: 2020 GRC | F33: Base rate change | I33: Not applicable | J33: Not applicable | K33: Not applicable | L33: TBD | M33: TBD
B36: Total Anticipated | I36: =SUM(I24:I35) -> 0 | J36: =SUM(J24:J35) -> 0 | K36: =SUM(K24:K35) -> 0 | L36: =SUM(L24:L35) -> 0 | M36: =SUM(M24:M35) -> 0
B37: CPUC Fee | D37: 1 | I37: =SUM(I6+I14+I22+I36)*0.0123 -> 3.865275 | J37: =SUM(J6+J14+J22+J36)*0.0123 -> 3.914475 | K37: =SUM(K6+K14+K22+K36)*0.0123 -> 3.9114 | L37: =SUM(L6+L14+L22+L36)*0.0123 -> 3.3948 | M37: =SUM(M6+M14+M22+M36)*0.0123 -> 3.3948
B38: Total Estimated Annual Bill, Not Including TBD Amounts | I38: =SUM(I6+I14+I22+I36)*1.0123 -> 318.115275 | J38: =SUM(J6+J14+J22+J36)*1.0123 -> 322.164475 | K38: =SUM(K6+K14+K22+K36)*1.0123 -> 321.9114 | L38: =SUM(L6+L14+L22+L36)*1.0123 -> 279.3948 | M38: =SUM(M6+M14+M22+M36)*1.0123 -> 279.3948
B39: Change in Estimated Annual Bill, as Compared to Year 1 | I39: n/a | J39: =J38-I38 -> 4.0492 | K39: =K38-I38 -> 3.796125 | L39: =L38-I38 -> -38.720475 | M39: =M38-I38 -> -38.720475
A41: CAP Residential Customers - Average Usage | B41: Status | C41: Proceedings | D41: Footnote Reference | E41: Description of Filing | F41: Revenue Recovery Mechanism | G41: Effective Date or Proposed Effective Date | H41: Expiration Date or Proposed Expiration Date | I41: 2019 | J41: 2020 | K41: 2021 | L41: 2022 | M41: 2023
B42: Baseline bill (incl. service & quantity charges) | C42: D.XX-XX-XXX/A. or AL | I42: =Baseline_Bill_LIRA_Avg_Exp -> 248.5714286 | J42: =Baseline_Bill_LIRA_Avg_Exp -> 248.5714286 | K42: =Baseline_Bill_LIRA_Avg_Exp -> 248.5714286 | L42: =Baseline_Bill_LIRA_Avg_Exp -> 248.5714286 | M42: =Baseline_Bill_LIRA_Avg_Exp -> 248.5714286
B43: Active | C43: A.18-XX-XXX; D.19-XX-XXX | E43: (e.g., Bal. Acct., IRMA, WRAM) | F43: (e.g., amortization of balancing account, GRC base rate increase, etc.) | I43: Fill out subsequent panels for different customer classes according to the instructions and the example above.
B44: Active | C44: A.18-XX-XXX; D.19-XX-XXX
B45: Active | C45: AL # XXXX
B46: Active | C46: AL # XXXX
B47: Active | C47: AL # XXXX
B48: Active | C48: AL # XXXX
B49: Active | C49: Copy-paste this row as necessary to add additional active filings
B50: Total Active | I50: =SUM(I43:I49) -> 0 | J50: =SUM(J43:J49) -> 0 | K50: =SUM(K43:K49) -> 0 | L50: =SUM(L43:L49) -> 0 | M50: =SUM(M43:M49) -> 0
B52: Pending (New) | C52: AL # XXXX
B53: Pending - Filed | C53: AL # XXXX
B54: Pending - Filed | C54: AL # XXXX
B55: Pending - Filed | C55: AL # XXXX
B56: Pending - Filed | C56: AL # XXXX
B57: Pending - Filed | C57: Copy-paste this row as necessary to add additional pending filings
B58: Total Pending | I58: =SUM(I52:I57) -> 0 | J58: =SUM(J52:J57) -> 0 | K58: =SUM(K52:K57) -> 0 | L58: =SUM(L52:L57) -> 0 | M58: =SUM(M52:M57) -> 0
B60: Anticipated | C60: Advice Letter | E60: IRMA (as appropriate) | F60: No change to stated rev. req.
B61: Anticipated | C61: Advice Letter | E61: 20XX Estimated Escalation Year Increase, Pending Earnings Test | F61: Base rate increase (est.)
B62: Anticipated | C62: Advice Letter | E62: 20XX Estimated Escalation Year Increase, Pending Earnings Test | F62: Base rate increase (est.)
B63: Anticipated | C63: Advice Letter | E63: 20XX WRAM/MCBA | F63: Amort. of balancing acct.
B64: Anticipated | C64: Advice Letter | E64: 20XX WRAM/MCBA | F64: Amort. of balancing acct.
B65: Anticipated | C65: Advice Letter | E65: 20XX WRAM/MCBA | F65: Amort. of balancing acct.
B66: Anticipated | C66: Advice Letter | E66: Supply Cost Offset | F66: Base rate change
B67: Anticipated | C67: Advice Letter | E67: Supply Cost Offset | F67: Base rate change
B68: Anticipated | C68: Advice Letter | E68: Rate base offsets (ALPs) | F68: Base rate increase
B69: Anticipated | C69: Advice Letter | E69: Cost of capital | F69: Base rate change
B70: Anticipated | C70: Application | E70: 20XX GRC | F70: Base rate change
B71: Anticipated | C71: Copy-paste this row as necessary to add additional anticipated filings
B72: Total Anticipated | I72: =SUM(I60:I71) -> 0 | J72: =SUM(J60:J71) -> 0 | K72: =SUM(K60:K71) -> 0 | L72: =SUM(L60:L71) -> 0 | M72: =SUM(M60:M71) -> 0
B73: CPUC Fee | D73: 1 | I73: =SUM(I42+I50+I58+I72)*0.0123 -> 3.057428571 | J73: =SUM(J42+J50+J58+J72)*0.0123 -> 3.057428571 | K73: =SUM(K42+K50+K58+K72)*0.0123 -> 3.057428571 | L73: =SUM(L42+L50+L58+L72)*0.0123 -> 3.057428571 | M73: =SUM(M42+M50+M58+M72)*0.0123 -> 3.057428571
B74: Total Estimated Annual Bill, Not Including TBD Amounts | I74: =SUM(I42+I50+I58+I72)*1.0123 -> 251.6288571 | J74: =SUM(J42+J50+J58+J72)*1.0123 -> 251.6288571 | K74: =SUM(K42+K50+K58+K72)*1.0123 -> 251.6288571 | L74: =SUM(L42+L50+L58+L72)*1.0123 -> 251.6288571 | M74: =SUM(M42+M50+M58+M72)*1.0123 -> 251.6288571
B75: Change in Estimated Annual Bill, as Compared to Year 1 | I75: n/a | J75: =J74-I74 -> 0 | K75: =K74-I74 -> 0 | L75: =L74-I74 -> 0 | M75: =M74-I74 -> 0
A77: Non-CAP Residential Customers - Tier 1 Usage | B77: Status | C77: Proceedings | D77: Footnote Reference | E77: Description of Filing | F77: Revenue Recovery Mechanism | G77: Effective Date or Proposed Effective Date | H77: Expiration Date or Proposed Expiration Date | I77: 2019 | J77: 2020 | K77: 2021 | L77: 2022 | M77: 2023
B78: Baseline bill (incl. service & quantity charges) | C78: D.XX-XX-XXX/A. or AL | I78: =Baseline_Bill_Non_LIRA_Tier_1_Exp -> 264 | J78: =Baseline_Bill_Non_LIRA_Tier_1_Exp -> 264 | K78: =Baseline_Bill_Non_LIRA_Tier_1_Exp -> 264 | L78: =Baseline_Bill_Non_LIRA_Tier_1_Exp -> 264 | M78: =Baseline_Bill_Non_LIRA_Tier_1_Exp -> 264
B79: Active | C79: A.18-XX-XXX; D.19-XX-XXX | E79: (e.g., Bal. Acct., IRMA, WRAM) | F79: (e.g., amortization of balancing account, GRC base rate increase, etc.)
B80: Active | C80: A.18-XX-XXX; D.19-XX-XXX
B81: Active | C81: AL # XXXX
B82: Active | C82: AL # XXXX
B83: Active | C83: AL # XXXX
B84: Active | C84: AL # XXXX
B85: Active | C85: Copy-paste this row as necessary to add additional active filings
B86: Total Active | I86: =SUM(I79:I85) -> 0 | J86: =SUM(J79:J85) -> 0 | K86: =SUM(K79:K85) -> 0 | L86: =SUM(L79:L85) -> 0 | M86: =SUM(M79:M85) -> 0
B88: Pending (New) | C88: AL # XXXX
B89: Pending - Filed | C89: AL # XXXX
B90: Pending - Filed | C90: AL # XXXX
B91: Pending - Filed | C91: AL # XXXX
B92: Pending - Filed | C92: AL # XXXX
B93: Pending - Filed | C93: Copy-paste this row as necessary to add additional pending filings
B94: Total Pending | I94: =SUM(I88:I93) -> 0 | J94: =SUM(J88:J93) -> 0 | K94: =SUM(K88:K93) -> 0 | L94: =SUM(L88:L93) -> 0 | M94: =SUM(M88:M93) -> 0
B96: Anticipated | C96: Advice Letter | E96: IRMA (as appropriate) | F96: No change to stated rev. req.
B97: Anticipated | C97: Advice Letter | E97: 20XX Estimated Escalation Year Increase, Pending Earnings Test | F97: Base rate increase (est.)
B98: Anticipated | C98: Advice Letter | E98: 20XX Estimated Escalation Year Increase, Pending Earnings Test | F98: Base rate increase (est.)
B99: Anticipated | C99: Advice Letter | E99: 20XX WRAM/MCBA | F99: Amort. of balancing acct.
B100: Anticipated | C100: Advice Letter | E100: 20XX WRAM/MCBA | F100: Amort. of balancing acct.
B101: Anticipated | C101: Advice Letter | E101: 20XX WRAM/MCBA | F101: Amort. of balancing acct.
B102: Anticipated | C102: Advice Letter | E102: Supply Cost Offset | F102: Base rate change
B103: Anticipated | C103: Advice Letter | E103: Supply Cost Offset | F103: Base rate change
B104: Anticipated | C104: Advice Letter | E104: Rate base offsets (ALPs) | F104: Base rate increase
B105: Anticipated | C105: Advice Letter | E105: Cost of capital | F105: Base rate change
B106: Anticipated | C106: Application | E106: 20XX GRC | F106: Base rate change
B107: Anticipated | C107: Copy-paste this row as necessary to add additional anticipated filings
B108: Total Anticipated | I108: =SUM(I96:I107) -> 0 | J108: =SUM(J96:J107) -> 0 | K108: =SUM(K96:K107) -> 0 | L108: =SUM(L96:L107) -> 0 | M108: =SUM(M96:M107) -> 0
B109: CPUC Fee | D109: 1 | I109: =SUM(I78+I86+I94+I108)*0.0123 -> 3.2472 | J109: =SUM(J78+J86+J94+J108)*0.0123 -> 3.2472 | K109: =SUM(K78+K86+K94+K108)*0.0123 -> 3.2472 | L109: =SUM(L78+L86+L94+L108)*0.0123 -> 3.2472 | M109: =SUM(M78+M86+M94+M108)*0.0123 -> 3.2472
B110: Total Estimated Annual Bill, Not Including TBD Amounts | I110: =SUM(I78+I86+I94+I108)*1.0123 -> 267.2472 | J110: =SUM(J78+J86+J94+J108)*1.0123 -> 267.2472 | K110: =SUM(K78+K86+K94+K108)*1.0123 -> 267.2472 | L110: =SUM(L78+L86+L94+L108)*1.0123 -> 267.2472 | M110: =SUM(M78+M86+M94+M108)*1.0123 -> 267.2472
B111: Change in Estimated Annual Bill, as Compared to Year 1 | I111: n/a | J111: =J110-I110 -> 0 | K111: =K110-I110 -> 0 | L111: =L110-I110 -> 0 | M111: =M110-I110 -> 0
A113: CAP Residential Customers - Tier 1 Usage | B113: Status | C113: Proceedings | D113: Footnote Reference | E113: Description of Filing | F113: Revenue Recovery Mechanism | G113: Effective Date or Proposed Effective Date | H113: Expiration Date or Proposed Expiration Date | I113: 2019 | J113: 2020 | K113: 2021 | L113: 2022 | M113: 2023
B114: Baseline bill (incl. service & quantity charges) | C114: D.XX-XX-XXX/A. or AL | I114: =Baseline_Bill_LIRA_Tier_1_Exp -> 248.5714286 | J114: =Baseline_Bill_LIRA_Tier_1_Exp -> 248.5714286 | K114: =Baseline_Bill_LIRA_Tier_1_Exp -> 248.5714286 | L114: =Baseline_Bill_LIRA_Tier_1_Exp -> 248.5714286 | M114: =Baseline_Bill_LIRA_Tier_1_Exp -> 248.5714286
B115: Active | C115: A.18-XX-XXX; D.19-XX-XXX | E115: (e.g., Bal. Acct., IRMA, WRAM) | F115: (e.g., amortization of balancing account, GRC base rate increase, etc.)
B116: Active | C116: A.18-XX-XXX; D.19-XX-XXX
B117: Active | C117: AL # XXXX
B118: Active | C118: AL # XXXX
B119: Active | C119: AL # XXXX
B120: Active | C120: AL # XXXX
B121: Active | C121: Copy-paste this row as necessary to add additional active filings
B122: Total Active | I122: =SUM(I115:I121) -> 0 | J122: =SUM(J115:J121) -> 0 | K122: =SUM(K115:K121) -> 0 | L122: =SUM(L115:L121) -> 0 | M122: =SUM(M115:M121) -> 0
B124: Pending (New) | C124: AL # XXXX
B125: Pending - Filed | C125: AL # XXXX
B126: Pending - Filed | C126: AL # XXXX
B127: Pending - Filed | C127: AL # XXXX
B128: Pending - Filed | C128: AL # XXXX
B129: Pending - Filed | C129: Copy-paste this row as necessary to add additional pending filings
B130: Total Pending | I130: =SUM(I124:I129) -> 0 | J130: =SUM(J124:J129) -> 0 | K130: =SUM(K124:K129) -> 0 | L130: =SUM(L124:L129) -> 0 | M130: =SUM(M124:M129) -> 0
B132: Anticipated | C132: Advice Letter | E132: IRMA (as appropriate) | F132: No change to stated rev. req.
B133: Anticipated | C133: Advice Letter | E133: 20XX Estimated Escalation Year Increase, Pending Earnings Test | F133: Base rate increase (est.)
B134: Anticipated | C134: Advice Letter | E134: 20XX Estimated Escalation Year Increase, Pending Earnings Test | F134: Base rate increase (est.)
B135: Anticipated | C135: Advice Letter | E135: 20XX WRAM/MCBA | F135: Amort. of balancing acct.
B136: Anticipated | C136: Advice Letter | E136: 20XX WRAM/MCBA | F136: Amort. of balancing acct.
B137: Anticipated | C137: Advice Letter | E137: 20XX WRAM/MCBA | F137: Amort. of balancing acct.
B138: Anticipated | C138: Advice Letter | E138: Supply Cost Offset | F138: Base rate change
B139: Anticipated | C139: Advice Letter | E139: Supply Cost Offset | F139: Base rate change
B140: Anticipated | C140: Advice Letter | E140: Rate base offsets (ALPs) | F140: Base rate increase
B141: Anticipated | C141: Advice Letter | E141: Cost of capital | F141: Base rate change
B142: Anticipated | C142: Application | E142: 20XX GRC | F142: Base rate change
B143: Anticipated | C143: Copy-paste this row as necessary to add additional anticipated filings
B144: Total Anticipated | I144: =SUM(I132:I143) -> 0 | J144: =SUM(J132:J143) -> 0 | K144: =SUM(K132:K143) -> 0 | L144: =SUM(L132:L143) -> 0 | M144: =SUM(M132:M143) -> 0
B145: CPUC Fee | D145: 1 | I145: =SUM(I114+I122+I130+I144)*0.0123 -> 3.057428571 | J145: =SUM(J114+J122+J130+J144)*0.0123 -> 3.057428571 | K145: =SUM(K114+K122+K130+K144)*0.0123 -> 3.057428571 | L145: =SUM(L114+L122+L130+L144)*0.0123 -> 3.057428571 | M145: =SUM(M114+M122+M130+M144)*0.0123 -> 3.057428571
B146: Total Estimated Annual Bill, Not Including TBD Amounts | I146: =SUM(I114+I122+I130+I144)*1.0123 -> 251.6288571 | J146: =SUM(J114+J122+J130+J144)*1.0123 -> 251.6288571 | K146: =SUM(K114+K122+K130+K144)*1.0123 -> 251.6288571 | L146: =SUM(L114+L122+L130+L144)*1.0123 -> 251.6288571 | M146: =SUM(M114+M122+M130+M144)*1.0123 -> 251.6288571
B147: Change in Estimated Annual Bill, as Compared to Year 1 | I147: n/a | J147: =J146-I146 -> 0 | K147: =K146-I146 -> 0 | L147: =L146-I146 -> 0 | M147: =M146-I146 -> 0
B150: Footnotes and Assumptions:
B151: 1. CPUC User Fee of 1.23% corresponds to the most recent resolution setting the User Fee (i.e., Resolution M-4839). Update as necessary.
